Workbook

Sheet Population Estimates
B1: GOPB Estimates | C1: 1990 | D1: 2000 | E1: 2010 | F1: 2020 | G1: 2030 | H1: 2040 | I1: 2050 | J1: 2060
B2: 2005 Estimate | C2: 48978 | D2: 91090 | E2: 168078 | F2: 279864 | G2: 415510 | H2: 559670 | I2: 709674 | J2: 860378
B3: 2012 Estimate | C3: 48978 | D3: 91090 | E3: 138748 | F3: 196762 | G3: 280558 | H3: 371743 | I3: 472567 | J3: 581731 | Q3: low | R3: high
B4: # Households (est. 2012) | C4: 15481 | D4: 30191 | E4: 46545 | F4: 70919 | G4: 112378 | H4: 151647 | I4: 192884 | J4: 237065 | Q4: ='First Scenario'!N14 -> 61840169.77 | R4: ='Second Scenario'!N14 -> 130945384.2
P5: per capita debt | Q5: =Q4/(($E$3+$F$3)/2) -> 368.6338397 | R5: =R4/(($E$3+$F$3)/2) -> 780.5751497
B7: To solve for geometric growth rates: x_2060 = x_2010 * Exp(r * (2060-2010)) and solve for r.
B8: But that is for continuous compounding. For annual compounding: | I8: =J4-E4 -> 190520 | J8: change in households
B9: x_2060 = x_2010 * (1+r)^(2060-2010) and solve for r. | I9: =EXP( LN(J4/E4) / (J1-E1)) - 1 -> 0.0330941162 | J9: Annually Compounded Household Growth Rate, 2010--2060
B10: => Exp[ Ln(x_2060/x_2010) / (2060-2010)] - 1 = r. | I10: =EXP( LN(J3/E3) / (J1-E1)) - 1 -> 0.02908182853 | J10: Annually Compounded Population Growth Rate, 2010--2060
B11: Also, for annual compounding, x_t = x_0 * (1+r)^t implies that
B12: x_(t+1) - x_t = x_0 * (1+r)^t * r = x_t * r.
B35: Source: GOPB 2012 Population Projections

Sheet DSWRESR
A1: Data from the Draft Socioeconomics and Water Resource Economics Study Report | I1: ='First Scenario'!N11 -> 0.04 | J1: interest rate declared in the "First Scenario" (its N11)
I2: ='Second Scenario'!N11 -> 0.04 | J2: interest rate declared in the "Second Scenario" (its N11)
I3: 0.04 | J3: interest rate used on this page for our calculations (not for the Draft Report calculations, which are B6, I6, B23, and I23)
I4: 0.025 | J4: FERC "escalation rate" (rate of benefit & cost increases) to be used in Scenario pages
A6: Page 5-3, Table 5-1, No Pump Storage | H6: Page 5-4, Table 5-2, No Pump Storage
B7: 0.0414 | C7: Discount Rate | I7: 0.03 | J7: Discount Rate
B8: 0.025 | C8: Escalation Rate | I8: 0.025 | J8: Escalation Rate | N8: For Washington County's share of these, see tab "Revenues and Expenses"
N9: Avg. of 2 cases | O9: Avg. of 2 cases
B10: PV, 2010$ | C10: Annual, 2026 | D10: PV, 2015$ | I10: PV, 2010$ | J10: Annual, 2026 | K10: PV, 2015$ | N10: Annual, 2026 | O10: PV, 2015$
A11: Benefits | H11: Benefits | P11: Benefits | Q11: disagreement (ratio)
A12: Power-Inline | B12: 45167000 | C12: =(1+$B$8)^6 * (1+$B$7)^10 * (1 - (1+$B$8)/(1+$B$7)) * B12 / (1 - ((1+$B$8)/(1+$B$7))^41) -> 2587006.435 | E12: from equation 5 | H12: Power-Inline | I12: 69561000 | J12: =(1+$I$8)^6 * (1+$I$7)^10 * (1 - (1+$I$8)/(1+$I$7)) * I12 / (1 - ((1+$I$8)/(1+$I$7))^41) -> 2909678.091 | L12: from equation 5 | N12: =AVERAGE(C12,J12) -> 2748342.263 | P12: Power-Inline | Q12: =C12/J12 -> 0.8891040018
A13: Power-Pump Stations | B13: 127587000 | C13: =(1+$B$8)^6 * (1+$B$7)^10 * (1 - (1+$B$8)/(1+$B$7)) * B13 / (1 - ((1+$B$8)/(1+$B$7))^41) -> 7307733.301 | E13: from equation 5 | H13: Power-Pump Stations | I13: 197255000 | J13: =(1+$I$8)^6 * (1+$I$7)^10 * (1 - (1+$I$8)/(1+$I$7)) * I13 / (1 - ((1+$I$8)/(1+$I$7))^41) -> 8251010.65 | L13: from equation 5 | N13: =AVERAGE(C13,J13) -> 7779371.976 | P13: Power-Pump Stations | Q13: =C13/J13 -> 0.8856773564
N14: =SUM(N12:N13) -> 10527714.24 | P14: sum
A15: Costs | H15: Costs | P15: Costs
A16: Capital Construction | B16: 1124717000 | D16: =(1 -((1+B8)/(1+$I$3))^4)/(1- (1+B8)/(1+$I$3) )*(1/(1+B8))*(1 - (1+B8)/(1+B7) )/(1-((1+B8)/(1+B7))^4)*(1+B7)^6 *B16 -> 1402458713 | E16: from equation 6 | H16: Capital Construction | I16: 1227349000 | K16: =(1 -((1+I8)/(1+$I$3))^4)/(1- (1+I8)/(1+$I$3) )*(1/(1+I8))*(1 - (1+I8)/(1+I7) )/(1-((1+I8)/(1+I7))^4)*(1+I7)^6 *I16 -> 1409367477 | L16: from equation 6 | O16: =AVERAGE(D16,K16) -> 1405913095 | P16: Capital Construction | Q16: =D16/K16 -> 0.9950979687
A17: Operation, Maintenance & Replacement | B17: 72908000 | C17: =(1+$B$8)^6 * (1+$B$7)^10 * (1 - (1+$B$8)/(1+$B$7)) * B17 / (1 - ((1+$B$8)/(1+$B$7))^41) -> 4175913.059 | E17: from equation 5 | H17: Operation, Maintenance & Replacement | I17: 95113000 | J17: =(1+$I$8)^6 * (1+$I$7)^10 * (1 - (1+$I$8)/(1+$I$7)) * I17 / (1 - ((1+$I$8)/(1+$I$7))^41) -> 3978496.748 | L17: from equation 5 | N17: 4077204.903 | P17: Operation, Maintenance & Replacement | Q17: =C17/J17 -> 1.04962083
A18: Power Opers. | B18: 284353000 | C18: =(1+$B$8)^6 * (1+$B$7)^10 * (1 - (1+$B$8)/(1+$B$7)) * B18 / (1 - ((1+$B$8)/(1+$B$7))^41) -> 16286736.79 | E18: from equation 5 | H18: Power Opers. | I18: 435664000 | J18: =(1+$I$8)^6 * (1+$I$7)^10 * (1 - (1+$I$8)/(1+$I$7)) * I18 / (1 - ((1+$I$8)/(1+$I$7))^41) -> 18223458.49 | L18: from equation 5 | N18: 17255097.64 | P18: Power Opers. | Q18: =C18/J18 -> 0.8937237026
A19: Foregone Power | B19: 58401000 | C19: =(1+$B$8)^6 * (1+$B$7)^10 * (1 - (1+$B$8)/(1+$B$7)) * B19 / (1 - ((1+$B$8)/(1+$B$7))^41) -> 3345003.272 | E19: from equation 5 | H19: Foregone Power | I19: 88843000 | J19: =(1+$I$8)^6 * (1+$I$7)^10 * (1 - (1+$I$8)/(1+$I$7)) * I19 / (1 - ((1+$I$8)/(1+$I$7))^41) -> 3716227.924 | L19: from equation 5 | N19: 3530615.598 | P19: Foregone Power | Q19: 0.9001071356
N20: =SUM(N17:N19) -> 24862918.14 | P20: sum
A23: Page 5-5, Table 5-3, Pump Storage Configuration | H23: Page 5-6, Table 5-4, Pump Storage Configuration
B24: 0.0414 | C24: Discount Rate | I24: 0.03 | J24: Discount Rate
B25: 0.025 | C25: Escalation Rate | I25: 0.025 | J25: Escalation Rate
B27: PV, 2010$ | C27: Annual, 2026 | D27: PV, 2015$ | I27: PV, 2010$ | J27: Annual, 2026 | K27: PV, 2015$
A28: Benefits | H28: Benefits | P28: Benefits
A29: Power-Inline | B29: 45167000 | C29: =(1+$B$25)^6 * (1+$B$24)^10 * (1 - (1+$B$25)/(1+$B$24)) * B29 / (1 - ((1+$B$25)/(1+$B$24))^41) -> 2587006.435 | E29: from equation 5 | H29: Power-Inline | I29: 69561000 | J29: =(1+$I$25)^6 * (1+$I$24)^10 * (1 - (1+$I$25)/(1+$I$24)) * I29 / (1 - ((1+$I$25)/(1+$I$24))^41) -> 2909678.091 | L29: from equation 5 | N29: =AVERAGE(C29,J29) -> 2748342.263 | P29: Power-Inline | Q29: =C29/J29 -> 0.8891040018
A30: Power-Pump Stations | B30: 1261042000 | C30: =(1+$B$25)^6 * (1+$B$24)^10 * (1 - (1+$B$25)/(1+$B$24)) * B30 / (1 - ((1+$B$25)/(1+$B$24))^41) -> 72228037.47 | E30: from equation 5 | H30: Power-Pump Stations | I30: 1785425000 | J30: =(1+$I$25)^6 * (1+$I$24)^10 * (1 - (1+$I$25)/(1+$I$24)) * I30 / (1 - ((1+$I$25)/(1+$I$24))^41) -> 74682825.23 | L30: from equation 5 | N30: =AVERAGE(C30,J30) -> 73455431.35 | P30: Power-Pump Stations | Q30: 0.9671304915
N31: =SUM(N29:N30) -> 76203773.61 | P31: sum
A32: Costs | H32: Costs | P32: Costs
A33: Capital Construction | B33: 1482378000 | D33: =(1 -((1+B25)/(1+$I$3))^4)/(1- (1+B25)/(1+$I$3) )*(1/(1+B25))*(1 - (1+B25)/(1+B24) )/(1-((1+B25)/(1+B24))^4)*(1+B24)^6 *B33 -> 1848441823 | E33: from equation 6 | H33: Capital Construction | I33: 1617637000 | K33: =(1 -((1+I25)/(1+$I$3))^4)/(1- (1+I25)/(1+$I$3) )*(1/(1+I25))*(1 - (1+I25)/(1+I24) )/(1-((1+I25)/(1+I24))^4)*(1+I24)^6 *I33 -> 1857536020 | L33: from equation 6 | O33: =AVERAGE(D33,K33) -> 1852988922 | P33: Capital Construction | Q33: =D33/K33 -> 0.9951041613
A34: Operation, Maintenance & Replacement | B34: 96015000 | C34: 5499400.51 | E34: from equation 5 | H34: Operation, Maintenance & Replacement | I34: 125256000 | J34: =(1+$I$25)^6 * (1+$I$24)^10 * (1 - (1+$I$25)/(1+$I$24)) * I34 / (1 - ((1+$I$25)/(1+$I$24))^41) -> 5239353.071 | L34: from equation 5 | N34: 5369376.79 | P34: Operation, Maintenance & Replacement | Q34: =C34/J34 -> 1.049633502
A35: Power Opers. | B35: 284353000 | C35: 16286736.79 | E35: from equation 5 | H35: Power Opers. | I35: 435664000 | J35: =(1+$I$25)^6 * (1+$I$24)^10 * (1 - (1+$I$25)/(1+$I$24)) * I35 / (1 - ((1+$I$25)/(1+$I$24))^41) -> 18223458.49 | L35: from equation 5 | N35: 17255097.64 | P35: Power Opers. | Q35: 0.8937237026
A36: Power Pump Station Opers. | B36: 700345000 | C36: 40113291.15 | E36: from equation 5 | H36: Power Pump Station Opers. | I36: 971635000 | J36: =(1+$I$25)^6 * (1+$I$24)^10 * (1 - (1+$I$25)/(1+$I$24)) * I36 / (1 - ((1+$I$25)/(1+$I$24))^41) -> 40642674.37 | L36: from equation 5 | N36: 40377982.76 | P36: Power Pump Station Opers. | Q36: 0.9869746953
A37: Foregone Power | B37: 58401000 | C37: =(1+$B$25)^6 * (1+$B$24)^10 * (1 - (1+$B$25)/(1+$B$24)) * B37 / (1 - ((1+$B$25)/(1+$B$24))^41) -> 3345003.272 | E37: from equation 5 | H37: Foregone Power | I37: 88843000 | J37: =(1+$I$25)^6 * (1+$I$24)^10 * (1 - (1+$I$25)/(1+$I$24)) * I37 / (1 - ((1+$I$25)/(1+$I$24))^41) -> 3716227.924 | L37: from equation 5 | N37: 3530615.598 | P37: Foregone Power | Q37: 0.9001071356
N38: =SUM(N34:N37) -> 66533072.79 | P38: sum

Sheet Revenues and Expenses
B1: WCWCD Revenue Stream | I1: WCWCD Revenue Stream | K1: LPP Capital Costs
A2: Source: 2013 WCWCD Audited Financial Statement | H2: Source: 2013 WCWCD Audited Financial Statement
A3: Property Tax | B3: 9938660 | D3: Total Service Area Property Valuation | F3: 10240302002 | H3: Long Term Debt | K3: KCWCD | L3: =L5-L4 -> 53200000
D4: 2013 Property Tax Collection Rate | F4: =B3/F3 -> 0.000970543642 | H4: Notes Payable | I4: 1165000 | K4: WCWCD | L4: 912500000 | N4: Source: Facts: Lake Powell Pipeline Project - WCWCD (2012)
A5: Impact Fees | D5: Maximum Legal Property Tax Rate | F5: 0.001 | H5: GO Bonds | I5: 2680000 | K5: Total | L5: 965700000 | N5: =L4/L5 -> 0.9449104277 | O5: WCWCD share of capital costs
A6: Total | B6: 5919316 | D6: Additional Revenue if use Max. Rate | F6: =(F5-F4)*F3 -> 301642.002 | H6: Revenue Bonds | I6: 67291912
H7: Total | I7: =SUM(I4:I6) -> 71136912 | K7: FERC Low Cost Estimate for WCWCD (Baseline NED Assumptions) | L7: =N5*DSWRESR!O16 -> 1328461944 | N7: Source: 2012 Draft Study Report 10: Socioeconomics and Water Resource Economics - Page 5-3
A8: Cost per ERU | B8: 6102 | H8: Total with interest | I8: 94317144 | K8: FERC High Cost Estimate for WCWCD (Pump Storage Social Time Preference) | L8: =N5*DSWRESR!O33 -> 1750908555 | N8: Source: 2012 Draft Study Report 10: Socioeconomics and Water Resource Economics - Page 5-6
A9: Total New 2013 ERU's | B9: =B6/B8 -> 970.0616191 | H9: 2013 Debt Payments | I9: ='First Scenario'!I24 -> 7026322
D10: Note: Equivalent Residential Unit (ERU) is the metric used to determine cost of impact fee per lot, equivalent to 1 ERU per 10,000 sq. ft. of irrigable land | H10: Operating Expenses | K10: LPP Operation and Power Costs
A11: Water Availability Surcharge | H11: General Government | I11: 4443620
A12: Fee/ ERU | B12: 1.75 | H12: Water and Power Utilities | I12: 8788016 | N12: Note: Since WCWCD is responsible for 94.5% (N5) of capital costs, it was assumed they would be responsible for 94.5% of OM&R costs.
A13: 2013 Total | B13: 1248977 | H13: Total Operating Expenses | I13: =SUM(I11:I12) -> 13231636
A14: Total ERU's | B14: =B13/B12 -> 713701.1429 | D14: Note: The Water Availability Surcharge is charged to all water bills as a monthly fee | K14: FERC Low Cost Estimate for WCWCD (Baseline NED Assumptions) | L14: =N5*DSWRESR!N20 -> 23493230.61 | N14: Source: 2012 Draft Study Report 10: Socioeconomics and Water Resource Economics - Page 5-3
H15: Total Expenses | I15: =I13+I9 -> 20257958 | K15: FERC High Cost Estimate for WCWCD (Pump Storage Social Time Preference) | L15: =N5*DSWRESR!N38 -> 62867794.27 | N15: Source: 2012 Draft Study Report 10: Socioeconomics and Water Resource Economics - Page 5-6
A16: 2013 ERU Growth | B16: =B9/B14 -> 0.001359198635
K17: LPP Annual Power Revenues
A18: Operating Revenues | K18: FERC Low Cost Estimate for WCWCD (Baseline NED Assumptions) | L18: =N5*DSWRESR!N14 -> 9947746.963
A19: Power sale revenue | B19: 926134 | K19: FERC High Cost Estimate for WCWCD (Pump Storage Social Time Preference) | L19: =N5*DSWRESR!N31 -> 72005740.31
A20: water sales revenue | B20: 7013377
A21: Water Development and Connection Fees | B21: 1379171 | D21: =B21+B19 -> 2305305
A22: Total Operating Revenues | B22: =B19+B20+B21 -> 9318682
A24: Real Property
A25: Acres | B25: 1000 | C25: Annual | D25: 1200 | E25: Annual | F25: According to page 7 of the 2013 WCWCDAFS the District has between 1000-1200 acres in real property that can be sold at market value for additional funds. The District claims this property is valued between $50,000-$125,000 per acre.
A26: Low Value | B26: =50000*B25 -> 50000000 | C26: =B26/50 -> 1000000 | D26: =50000*D25 -> 60000000 | E26: =D26/50 -> 1200000
A27: High Value | B27: =125000*B25 -> 125000000 | C27: =B27/50 -> 2500000 | D27: =125000*D25 -> 150000000 | E27: =D27/50 -> 3000000
A28: Average | B28: =(B27+B26)/2 -> 87500000 | C28: 1750000 | D28: =(D27+D26)/2 -> 105000000 | E28: 2100000
A32: Total Gross Revenues | B32: =E27+B22+B13+B6+B3 -> 29425635
A34: Net Revenues | B34: =B32-I15 -> 9167677

Sheet First Scenario
B1: ='Revenues and Expenses'!B3 -> 9938660 | C1: 2013 Property Tax Collections | O1: Scenario A | P1: Scenario B | Q1: DSWRESR!i3 gives the FERC "escalation rate"
B2: ='Revenues and Expenses'!B20 -> 7013377 | C2: 2013 water sales revenue Revenue | O2: FERC Low Cost | P2: FERC High Cost Estimate
B3: ='Revenues and Expenses'!B8 -> 6102 | C3: 2013 Impact Fee per ERU | N3: Cost Estimate | O3: ='Revenues and Expenses'!L7 -> 1328461944 | P3: ='Revenues and Expenses'!$L$8 -> 1750908555
B4: ='Population Estimates'!I9 -> 0.0330941162 | C4: GOPB 50-Year Household Growth Rate Projection | N4: LPP O&M Costs (Column K) | O4: ='Revenues and Expenses'!$L$14 -> 23493230.61 | P4: ='Revenues and Expenses'!$L$15 -> 62867794.27
B5: =1+B4 -> 1.033094116 | C5: GOPB 50-Year Household Growth Rate Projection, plus one. | N5: LPP Power sale revenue (Column F) | O5: ='Revenues and Expenses'!$L$18 -> 9947746.963 | P5: ='Revenues and Expenses'!$L$19 -> 72005740.31
B6: 1.04 | C6: <- enter 1 plus assumed interest rate on reserves | N6: A | O6: <- enter A or B (capitalized) for which Scenario you want to analyze
C7: Q µ P^(-1/2) is the assumed demand curve, so revenues R = P^(1/2), so to increase R by a factor of "x" requires P to go up by a factor of "x^2". | N7: =IF($N$6="A", $O$3,$P$3) -> 1328461944 | O7: Loan Amount
B8: =(1+'Population Estimates'!I10)^(2060-2010) -> 4.192716291 | C8: If water sales revenue rises by a factor > this, (Q_2060 under new water price) < (Q_2010 under current water price). | N8: =A73 -> 2064 | O8: year when all debt has to be paid back
C9: Given unchanged impact fees: (see Column P) | N9: =A24 -> 2015 | O9: initial year of spreadsheet
B10: =S75 -> 3.20085321 | C10: The factor by which water sales revenue needs to increase to eliminate the debt by 2062, minus one | N10: 0 | O10: <- enter number of initial payment-free years (can be zero); water rates & impact fees don't change during this time
B11: =B10+1 -> 4.20085321 | C11: The factor by which water sales revenue needs to increase to eliminate the debt by 2062. | N11: 0.04 | O11: <- enter interest rate | U11: Total Expected Project Costs
B12: =B11^2 -> 17.6471677 | C12: The factor by which water prices need to increase to eliminate the debt by 2062. | N12: =N8-N9+1-N10 -> 50 | O12: years allowed for paying back the loan | U12: Cost w/ interest and O&M | V12: =K74+L74 -> 3092008489
B13: =1/B11 -> 0.23804688 | C13: The factor by which water demanded will change vs. base case when water prices rise enough to eliminate debt by 2062 (since revenue = PQ µ B5^(-2t) Q^(-2) Q = B5^(-2t) (1/Q) ). | N13: =N7*(1+N11)^N10 -> 1328461944 | O13: Loan Amount after initial years of negative amortization | U13: minus power sale revenue | V13: =V12-G74 -> 3092008489
C14: Given unchanged water prices: (see Column R) | N14: =-PMT(N11,N12,N13) -> 61840169.77 | O14: Annual Debt Service
B15: =U75 -> 2.467384349 | C15: The factor by which Impact Fees need to increase to eliminate the debt by 2062, minus one. | N15: If either this -> | O15: =R73 -> -9.834766388e-07 | P15: or this -> | Q15: =T73 -> 6.556510925e-07 | R15: is not zero,
B16: =B15+1 -> 3.467384349 | C16: The factor by which Impact Fees need to increase to eliminate the debt by 2062. | O16: click on this button -> | Q16: to make them zero.
B17: =B3*B16 -> 21157.97929 | C17: 2013 average Impact Fee per ERU, if Impact Fees increased as much as needed to eliminate the debt by 2062. | N17: (This will ensure that R75 and T75 change in order to make Q73, S73, and hence U73 equal to zero.)
C18: Given Split Between Impact Fees and Water Rates: (see Column T) | M18: 0.5 | N18: <- enter Impact Fees' portion of Split financing
B19: =B10*$M$19 + 1 -> 2.600426605 | C19: The factor by which water sales revenue needs to increase to eliminate the debt by 2062. | M19: =1-M18 -> 0.5 | N19: Water Rates
B20: =B19^2 -> 6.762218529 | C20: The factor by which water prices need to increase to eliminate the debt by 2062.
B21: =1+B15*$M$18 -> 2.233692174 | C21: The factor by which Impact Fees need to increase to eliminate the debt by 2062. | J21: =1/B19 -> 0.3845522877 | K21: The factor by which water demanded will change vs. base case if water prices behave this way.
B22: =B3*B21 -> 13629.98965 | C22: 2013 average Impact Fee per ERU, if Impact Fees increased as much as needed to eliminate the debt by 2062.
A23: Year | B23: Property Taxes | C23: water sales revenue | D23: Power sale revenue and Surcharges | E23: Impact Fees | F23: Real Estate sale revenue | G23: LPP Power sale revenue | H23: TOTAL REVENUES | I23: Annual Debt Service on Existing Debt | J23: Existing O&M Costs | K23: Annual LPP Debt Service | L23: LPP O&M Costs | M23: Total Annual Debt Service | N23: TOTAL EXPENSES | O23: Net Annual Surplus (Deficit) | P23: Cumulative Surplus (Deficit) | Q23: Repayment Option 1: Annual Surplus (Deficit) w/ Increased Water Rate sale revenue | R23: Repayment Option 1: Cumulative Surplus (Deficit) w/ Increased Water Rate sale revenue | S23: Repayment Option 2: Annual Surplus (Deficit) w/ Increased Impact Fees | T23: Repayment Option 2: Cumulative Surplus (Deficit) w/ Increased Impact Fees | U23: Repayment Option 3: Annual Surplus (Deficit) w/ 50/50 Split Between Impact Fees and Water Rates | V23: Repayment Option 3: Cumulative Surplus (Deficit) w/ Split Between Impact Fees and Water Rates
A24: 2015 | B24: ='Revenues and Expenses'!B3*B5 -> 10267571.17 | C24: ='Revenues and Expenses'!B20*$B$5 -> 7245478.513 | D24: =('Revenues and Expenses'!B19+'Revenues and Expenses'!B21) * $B$5 -> 2381597.032 | E24: =$B$3*'Population Estimates'!$E$4*$B$5^(A24-$A$24)*$B$4 -> 9399311.126 | F24: ='Revenues and Expenses'!$D$27/10 -> 15000000 | G24: 0 | H24: =B24+C24+E24+D24+G24+F24 -> 44293957.84 | I24: 7026322 | J24: ='Revenues and Expenses'!I13 -> 13231636 | K24: =IF(ROW()-24<$N$10,0,$N$14) -> 61840169.77 | L24: 0 | M24: =K24+I24 -> 68866491.77 | N24: =J24+M24+L24 -> 82098127.77 | O24: =H24-N24 -> -37804169.93 | P24: =O24 -> -37804169.93 | Q24: =IF(ROW()-24<$N$10,O24,O24+$B$10*C24) -> -14612456.77 | R24: =Q24 -> -14612456.77 | S24: =IF(ROW()-24<$N$10,O24,O24+$B$15*E24) -> -14612456.77 | T24: =S24 -> -14612456.77 | U24: =IF(ROW()-24<$N$10,O24,O24 + $M$19*C24*$B$10 + $M$18*E24*$B$15) -> -14612456.77 | V24: =U24 -> -14612456.77
A25: =A24+1 -> 2016 | B25: =B24*$B$5 -> 10607367.36 | C25: =C24*$B$5 -> 7485261.221 | D25: =D24*$B$5 -> 2460413.88 | E25: =$B$3*'Population Estimates'!$E$4*$B$5^(A25-$A$24)*$B$4 -> 9710373.021 | F25: ='Revenues and Expenses'!$D$27/10 -> 15000000 | G25: 0 | H25: =B25+C25+E25+D25+G25+F25 -> 45263415.48 | I25: 7039458 | J25: =J24*$B$5 -> 13669525.3 | K25: 61840169.77 | L25: 0 | M25: =K25+I24 -> 68866491.77 | N25: =J25+M25+L25 -> 82536017.07 | O25: -37272601.59 | P25: =P24*$B$6+O25 -> -76588938.32 | Q25: =IF(ROW()-24<$N$10,O25,O25+$B$10*C25) -> -13313379.18 | R25: =R24*$B$6+Q25 -> -28510334.22 | S25: =IF(ROW()-24<$N$10,O25,O25+$B$15*E25) -> -13313379.18 | T25: =T24*$B$6+S25 -> -28510334.22 | U25: =IF(ROW()-24<$N$10,O25,O25 + $M$19*C25*$B$10 + $M$18*E25*$B$15) -> -13313379.18 | V25: =V24*$B$6+U25 -> -28510334.22
A26: =A25+1 -> 2017 | B26: 10958408.81 | C26: 7732979.326 | D26: 2541839.103 | E26: =$B$3*'Population Estimates'!$E$4*$B$5^(A26-$A$24)*$B$4 -> 10031729.23 | F26: ='Revenues and Expenses'!$D$27/10 -> 15000000 | G26: 0 | H26: 46264956.47 | I26: 7048107 | J26: 14121906.16 | K26: 61840169.77 | L26: 0 | M26: 68879627.77 | N26: 83001533.93 | O26: -36736577.46 | P26: -116389073.3 | Q26: -11984445.76 | R26: -41635193.35 | S26: -11984445.76 | T26: -41635193.35 | U26: -11984445.76 | V26: -41635193.35
A27: 2018 | B27: 11321067.66 | C27: 7988895.442 | D27: 2625959.022 | E27: =$B$3*'Population Estimates'!$E$4*$B$5^(A27-$A$24)*$B$4 -> 10363720.45 | F27: ='Revenues and Expenses'!$D$27/10 -> 15000000 | G27: 0 | H27: 47299642.58 | I27: 7048318 | J27: 14589258.16 | K27: 61840169.77 | L27: 0 | M27: 68888276.77 | N27: 83477534.94 | O27: -36177892.36 | P27: -157222528.6 | Q27: -10606610.74 | R27: -53907211.82 | S27: -10606610.74 | T27: -53907211.82 | U27: -10606610.74 | V27: -53907211.82
A28: 2019 | B28: 11695728.39 | C28: =C27*$B$5 -> 8253280.876 | D28: =D27*$B$5 -> 2712862.815 | E28: =$B$3*'Population Estimates'!$E$4*$B$5^(A28-$A$24)*$B$4 -> 10706698.62 | F28: ='Revenues and Expenses'!$D$27/10 -> 15000000 | G28: 0 | H28: 48368570.7 | I28: 7050648 | J28: 15072076.77 | K28: 61840169.77 | L28: 0 | M28: 68888487.77 | N28: =J28+M28+L28 -> 83960564.54 | O28: -35591993.84 | P28: -199103423.6 | Q28: -9174453.25 | R28: -65237953.54 | S28: -9174453.25 | T28: -65237953.54 | U28: -9174453.25 | V28: -65237953.54
A29: 2020 | B29: 12082788.19 | C29: 8526415.913 | D29: 2802642.612 | E29: =$B$3*'Population Estimates'!$E$4*$B$5^(A29-$A$24)*$B$4 -> 11061027.34 | F29: ='Revenues and Expenses'!$D$27/10 -> 15000000 | G29: 0 | H29: 49472874.06 | I29: 6451090 | J29: 15570873.83 | K29: 61840169.77 | L29: 0 | M29: 68890817.77 | N29: 84461691.6 | O29: -34988817.54 | P29: -242056378.1 | Q29: -7697011.795 | R29: -75544483.48 | S29: -7697011.795 | T29: -75544483.48 | U29: -7697011.795 | V29: -75544483.48
A30: 2021 | B30: 12482657.38 | C30: 8808590.112 | D30: 2895393.592 | E30: =$B$3*'Population Estimates'!$E$4*$B$5^(A30-$A$24)*$B$4 -> 11427082.27 | F30: ='Revenues and Expenses'!$D$27/10 -> 15000000 | G30: 0 | H30: 50613723.36 | I30: 6456332 | J30: 16086178.13 | K30: 61840169.77 | L30: 0 | M30: 68291259.77 | N30: 84377437.91 | O30: -33763714.55 | P30: -285502347.7 | Q30: -5568710.613 | R30: -84134973.43 | S30: -5568710.613 | T30: -84134973.43 | U30: -5568710.613 | V30: -84134973.43
A31: 2022 | B31: 12895759.9 | C31: 9100102.616 | D31: 2991214.084 | E31: =$B$3*'Population Estimates'!$E$4*$B$5^(A31-$A$24)*$B$4 -> 11805251.46 | F31: ='Revenues and Expenses'!$D$27/10 -> 15000000 | G31: 0 | H31: 51792328.06 | I31: 6138580 | J31: 16618535.98 | K31: 61840169.77 | L31: 0 | M31: 68296501.77 | N31: 84915037.76 | O31: -33122709.7 | P31: -330045151.4 | Q31: -3994617.025 | R31: -91494989.39 | S31: -3994617.025 | T31: -91494989.39 | U31: -3994617.025 | V31: -91494989.39
A32: 2023 | B32: 13322533.68 | C32: 9401262.47 | D32: 3090205.671 | E32: =$B$3*'Population Estimates'!$E$4*$B$5^(A32-$A$24)*$B$4 -> 12195935.82 | F32: ='Revenues and Expenses'!$D$27/10 -> 15000000 | G32: 0 | H32: 53009937.64 | I32: 5095230 | J32: 17168511.74 | K32: 61840169.77 | L32: 0 | M32: 67978749.77 | N32: 85147261.52 | O32: -32137323.88 | P32: -375384281.3 | Q32: -2045262.723 | R32: -97200051.69 | S32: -2045262.723 | T32: -97200051.69 | U32: -2045262.723 | V32: -97200051.69
A33: 2024 | B33: 13763431.15 | C33: 9712388.942 | D33: 3192473.297 | E33: =$B$3*'Population Estimates'!$E$4*$B$5^(A33-$A$24)*$B$4 -> 12599549.54 | F33: ='Revenues and Expenses'!$D$27/10 -> 15000000 | G33: 0 | H33: 54267842.93 | I33: 5101740 | J33: 17736688.47 | K33: 61840169.77 | L33: 0 | M33: 66935399.77 | N33: 84672088.24 | O33: -30404245.31 | P33: -420803897.9 | Q33: 683686.0164 | R33: -100404367.7 | S33: 683686.0164 | T33: -100404367.7 | U33: 683686.0164 | V33: -100404367.7
A34: 2025 | B34: 14218919.74 | C34: 10033811.87 | D34: 3298125.379 | E34: =$B$3*'Population Estimates'!$E$4*$B$5^(A34-$A$24)*$B$4 -> 13016520.49 | F34: 0 | G34: 0 | H34: 40567377.49 | I34: 5109185 | J34: 18323668.49 | K34: 61840169.77 | L34: 0 | M34: 66941909.77 | N34: 85265578.27 | O34: -44698200.78 | P34: -482334254.5 | Q34: -12581441.84 | R34: -117001984.3 | S34: -12581441.84 | T34: -117001984.3 | U34: -12581441.84 | V34: -117001984.3
A35: 2026 | B35: 14689482.32 | C35: 10365872.01 | D35: 3407273.923 | E35: =$B$3*'Population Estimates'!$E$4*$B$5^(A35-$A$24)*$B$4 -> 13447290.74 | F35: 0 | G35: =IF($N$6="A", $O$5,$P$5) -> 9947746.963 | H35: 51857665.95 | I35: 5099965 | J35: 18930074.11 | K35: 61840169.77 | L35: =IF($N$6="A", $O$4,$P$4) -> 23493230.61 | M35: 66949354.77 | N35: 109372659.5 | O35: -57514993.54 | P35: -559142618.3 | Q35: -24335358.85 | R35: -146017422.5 | S35: -24335358.85 | T35: -146017422.5 | U35: -24335358.85 | V35: -146017422.5
A36: 2027 | B36: 15175617.76 | C36: 10708921.38 | D36: 3520034.642 | E36: =$B$3*'Population Estimates'!$E$4*$B$5^(A36-$A$24)*$B$4 -> 13892316.94 | F36: 0 | G36: =G35*(1+DSWRESR!$I$3) -> 10345656.84 | H36: 53642547.56 | I36: 3178350 | J36: 19556548.18 | K36: 61840169.77 | L36: =L35*(1+DSWRESR!$I$3) -> 24432959.84 | M36: 66940134.77 | N36: 110929642.8 | O36: -57287095.23 | P36: -638795418.2 | Q36: -23009409.86 | R36: -174867529.3 | S36: -23009409.86 | T36: -174867529.3 | U36: -23009409.86 | V36: -174867529.3
A37: 2028 | B37: 15677841.42 | C37: 11063323.67 | D37: 3636527.078 | E37: =$B$3*'Population Estimates'!$E$4*$B$5^(A37-$A$24)*$B$4 -> 14352070.89 | F37: 0 | G37: =G36*(1+DSWRESR!$I$3) -> 10759483.12 | H37: 55489246.17 | I37: 3178995 | J37: 20203754.86 | K37: 61840169.77 | L37: =L36*(1+DSWRESR!$I$3) -> 25410278.23 | M37: 65018519.77 | N37: 110632552.9 | O37: -55143306.7 | P37: -719490541.7 | Q37: -19731231.62 | R37: -201593462.1 | S37: -19731231.62 | T37: -201593462.1 | U37: -19731231.62 | V37: -201593462.1
A38: 2029 | B38: 16196685.72 | C38: 11429454.59 | D38: 3756874.728 | E38: =$B$3*'Population Estimates'!$E$4*$B$5^(A38-$A$24)*$B$4 -> 14827039.99 | F38: 0 | G38: =G37*(1+DSWRESR!$I$3) -> 11189862.44 | H38: 57399917.47 | I38: 3188875 | J38: 20872380.27 | K38: 61840169.77 | L38: =L37*(1+DSWRESR!$I$3) -> 26426689.36 | M38: 65019164.77 | N38: 112318234.4 | O38: -54918316.94 | P38: -803188480.3 | Q38: -18334310.53 | R38: -227991511.1 | S38: -18334310.53 | T38: -227991511.1 | U38: -18334310.53 | V38: -227991511.1
A39: 2030 | B39: 16732700.72 | C39: 11807702.29 | D39: 3881205.176 | E39: =$B$3*'Population Estimates'!$E$4*$B$5^(A39-$A$24)*$B$4 -> 15317727.77 | F39: 0 | G39: =G38*(1+DSWRESR!$I$3) -> 11637456.94 | H39: 59376792.9 | I39: 1786290 | J39: 21563133.25 | K39: 61840169.77 | L39: =L38*(1+DSWRESR!$I$3) -> 27483756.94 | M39: 65029044.77 | N39: 114075935 | O39: -54699142.06 | P39: -890015161.5 | Q39: -16904420.3 | R39: -254015591.8 | S39: -16904420.3 | T39: -254015591.8 | U39: -16904420.3 | V39: -254015591.8
A40: 2031 | B40: 17286454.66 | C40: 12198467.76 | D40: 4009650.231 | E40: =$B$3*'Population Estimates'!$E$4*$B$5^(A40-$A$24)*$B$4 -> 15824654.44 | F40: 0 | G40: =G39*(1+DSWRESR!$I$3) -> 12102955.22 | H40: 61422182.31 | I40: 1610460 | J40: 22276746.09 | K40: 61840169.77 | L40: =L39*(1+DSWRESR!$I$3) -> 28583107.21 | M40: 63626459.77 | N40: 114486313.1 | O40: -53064130.77 | P40: -978679898.8 | Q40: -14018626.09 | R40: -278194841.6 | S40: -14018626.09 | T40: -278194841.6 | U40: -14018626.09 | V40: -278194841.6
A41: 2032 | B41: 17858534.6 | C41: 12602165.27 | D41: 4142346.062 | E41: =$B$3*'Population Estimates'!$E$4*$B$5^(A41-$A$24)*$B$4 -> 16348357.39 | F41: 0 | G41: =G40*(1+DSWRESR!$I$3) -> 12587073.42 | H41: 63538476.75 | I41: 1610460 | J41: 23013975.31 | K41: 61840169.77 | L41: =L40*(1+DSWRESR!$I$3) -> 29726431.5 | M41: 63450629.77 | N41: 116191036.6 | O41: -52652559.84 | P41: -1070479655 | Q41: -12314878.69 | R41: -301637513.9 | S41: -12314878.69 | T41: -301637513.9 | U41: -12314878.69 | V41: -301637513.9
A42: 2033 | B42: 18449547.02 | C42: 13019222.79 | D42: 4279433.344 | E42: =$B$3*'Population Estimates'!$E$4*$B$5^(A42-$A$24)*$B$4 -> 16889391.83 | F42: 0 | G42: =G41*(1+DSWRESR!$I$3) -> 13090556.36 | H42: 65728151.35 | I42: 1610460 | J42: 23775602.48 | K42: 61840169.77 | L42: =L41*(1+DSWRESR!$I$3) -> 30915488.76 | M42: 63450629.77 | N42: 118141721 | O42: -52413569.67 | P42: -1165712410 | Q42: -10740948.62 | R42: -324443963.1 | S42: -10740948.62 | T42: -324443963.1 | U42: -10740948.62 | V42: -324443963.1
A43: 2034 | B43: 19060118.48 | C43: 13450082.46 | D43: 4421057.408 | E43: =$B$3*'Population Estimates'!$E$4*$B$5^(A43-$A$24)*$B$4 -> 17448331.33 | F43: 0 | G43: =G42*(1+DSWRESR!$I$3) -> 13614178.62 | H43: 67993768.28 | I43: 1610460 | J43: 24562435.03 | K43: 61840169.77 | L43: =L42*(1+DSWRESR!$I$3) -> 32152108.31 | M43: 63450629.77 | N43: 120165173.1 | O43: -52171404.84 | P43: -1264512312 | Q43: -9119665.216 | R43: -346541386.8 | S43: -9119665.216 | T43: -346541386.8 | U43: -9119665.216 | V43: -346541386.8
A44: 2035 | B44: 19690896.25 | C44: 13895201.05 | D44: 4567368.396 | E44: =$B$3*'Population Estimates'!$E$4*$B$5^(A44-$A$24)*$B$4 -> 18025768.43 | F44: 0 | G44: =G43*(1+DSWRESR!$I$3) -> 14158745.76 | H44: 70337979.89 | I44: 110460 | J44: 25375307.11 | K44: 61840169.77 | L44: =L43*(1+DSWRESR!$I$3) -> 33438192.65 | M44: 63450629.77 | N44: 122264129.5 | O44: -51926149.64 | P44: -1367018954 | Q44: -7449650.75 | R44: -367852693.1 | S44: -7449650.75 | T44: -367852693.1 | U44: -7449650.75 | V44: -367852693.1
A45: 2036 | B45: 20342549.06 | C45: 14355050.45 | D45: 4718521.417 | E45: =$B$3*'Population Estimates'!$E$4*$B$5^(A45-$A$24)*$B$4 -> 18622315.3 | F45: 0 | G45: =G44*(1+DSWRESR!$I$3) -> 14725095.59 | H45: 72763531.82 | I45: 110460 | J45: 26215080.48 | K45: 61840169.77 | L45: =L44*(1+DSWRESR!$I$3) -> 34775720.35 | M45: 61950629.77 | N45: 122941430.6 | O45: -50177898.78 | P45: -1471877611 | Q45: -4229489.463 | R45: -386796290.3 | S45: -4229489.463 | T45: -386796290.3 | U45: -4229489.463 | V45: -386796290.3
A46: 2037 | B46: 21015767.74 | C46: 14830118.16 | D46: 4874676.713 | E46: =$B$3*'Population Estimates'!$E$4*$B$5^(A46-$A$24)*$B$4 -> 19238604.37 | F46: 0 | G46: =G45*(1+DSWRESR!$I$3) -> 15314099.41 | H46: 75273266.4 | I46: 110460 | J46: 27082645.39 | K46: 61840169.77 | L46: =L45*(1+DSWRESR!$I$3) -> 36166749.17 | M46: 61950629.77 | N46: 125200024.3 | O46: -49926757.94 | P46: -1580679473 | Q46: -2457726.623 | R46: -404725868.5 | S46: -2457726.623 | T46: -404725868.5 | U46: -2457726.623 | V46: -404725868.5
A47: 2038 | B47: 21711266 | C47: 15320907.81 | D47: 5035999.83 | E47: =$B$3*'Population Estimates'!$E$4*$B$5^(A47-$A$24)*$B$4 -> 19875288.98 | F47: 0 | G47: =G46*(1+DSWRESR!$I$3) -> 15926663.39 | H47: 77870126.01 | I47: 110460 | J47: 27978921.61 | K47: 61840169.77 | L47: =L46*(1+DSWRESR!$I$3) -> 37613419.13 | M47: 61950629.77 | N47: 127542970.5 | O47: -49672844.5 | P47: -1693579497 | Q47: -632867.549 | R47: -421547770.8 | S47: -632867.549 | T47: -421547770.8 | U47: -632867.549 | V47: -421547770.8
A48: 2039 | B48: 22429781.16 | C48: 15827939.71 | D48: 5202661.794 | E48: =$B$3*'Population Estimates'!$E$4*$B$5^(A48-$A$24)*$B$4 -> 20533044.1 | F48: 0 | G48: =G47*(1+DSWRESR!$I$3) -> 16563729.93 | H48: 80557156.7 | I48: 110460 | J48: 28904859.29 | K48: 61840169.77 | L48: =L47*(1+DSWRESR!$I$3) -> 39117955.9 | M48: 61950629.77 | N48: 129973445 | O48: -49416288.26 | P48: -1810738965 | Q48: 1246623.384 | R48: -437163058.2 | S48: 1246623.384 | T48: -437163058.2 | U48: 1246623.384 | V48: -437163058.2
A49: 2040 | B49: 23172074.95 | C49: 16351751.39 | D49: 5374839.288 | E49: =$B$3*'Population Estimates'!$E$4*$B$5^(A49-$A$24)*$B$4 -> 21212567.05 | F49: 0 | G49: =G48*(1+DSWRESR!$I$3) -> 17226279.12 | H49: 83337511.8 | I49: 110460 | J49: 29861440.06 | K49: 61840169.77 | L49: =L48*(1+DSWRESR!$I$3) -> 40682674.13 | M49: 61950629.77 | N49: 132494744 | O49: -49157232.17 | P49: -1932325755 | Q49: 3182323.76 | R49: -451467256.8 | S49: 3182323.76 | T49: -451467256.8 | U49: 3182323.76 | V49: -451467256.8
A50: 2041 | B50: 23938934.29 | C50: 16892898.15 | D50: 5552714.844 | E50: =$B$3*'Population Estimates'!$E$4*$B$5^(A50-$A$24)*$B$4 -> 21914578.21 | F50: 0 | G50: =G49*(1+DSWRESR!$I$3) -> 17915330.29 | H50: 86214455.78 | I50: 110460 | J50: 30849678.03 | K50: 61840169.77 | L50: =L49*(1+DSWRESR!$I$3) -> 42309981.1 | M50: 61950629.77 | N50: 135110288.9 | O50: -48895833.12 | P50: -2058514619 | Q50: 5175854.154 | R50: -464350092.9 | S50: 5175854.154 | T50: -464350092.9 | U50: 5175854.154 | V50: -464350092.9
A51: 2042 | B51: 24731172.16 | C51: 17451953.69 | D51: 5736477.034 | E51: =$B$3*'Population Estimates'!$E$4*$B$5^(A51-$A$24)*$B$4 -> 22639821.81 | F51: 0 | G51: =G50*(1+DSWRESR!$I$3) -> 18631943.5 | H51: 89191368.19 | I51: 110460 | J51: 31870620.86 | K51: 61840169.77 | L51: =L50*(1+DSWRESR!$I$3) -> 44002380.34 | M51: 61950629.77 | N51: 137823631 | O51: -48632262.79 | P51: -2189487466 | Q51: =IF(ROW()-24<$N$10,O51,O51+$B$10*C51) -> 7228879.19 | R51: -475695217.4 | S51: 7228879.19 | T51: -475695217.4 | U51: 7228879.19 | V51: -475695217.4
A52: 2043 | B52: 25549628.45 | C52: 18029510.67 | D52: 5926320.671 | E52: =$B$3*'Population Estimates'!$E$4*$B$5^(A52-$A$24)*$B$4 -> 23389066.7 | F52: 0 | G52: =G51*(1+DSWRESR!$I$3) -> 19377221.24 | H52: 92271747.73 | I52: 110460 | J52: 32925350.89 | K52: 61840169.77 | L52: =L51*(1+DSWRESR!$I$3) -> 45762475.56 | M52: 61950629.77 | N52: 140638456.2 | O52: -48366708.5 | P52: -2325433673 | Q52: 9343108.609 | R52: -485379917.5 | S52: 9343108.609 | T52: -485379917.5 | U52: 9343108.609 | V52: -485379917.5
A53: 2044 | B53: 26395170.82 | C53: 18626181.39 | D53: 6122447.016 | E53: =$B$3*'Population Estimates'!$E$4*$B$5^(A53-$A$24)*$B$4 -> 24163107.19 | F53: 0 | G53: =G52*(1+DSWRESR!$I$3) -> 20152310.09 | H53: 95459216.51 | I53: 110460 | J53: 34014986.28 | K53: 61840169.77 | L53: =L52*(1+DSWRESR!$I$3) -> 47592974.58 | M53: 61950629.77 | N53: 143558590.6 | O53: -48099374.13 | P53: -2466550394 | Q53: 11520298.37 | R53: -493274815.9 | S53: 11520298.37 | T53: -493274815.9 | U53: 11520298.37 | V53: -493274815.9
A54: 2045 | B54: 27268695.67 | C54: 19242598.4 | D54: 6325063.989 | E54: =$B$3*'Population Estimates'!$E$4*$B$5^(A54-$A$24)*$B$4 -> 24962763.87 | F54: 0 | G54: =G53*(1+DSWRESR!$I$3) -> 20958402.49 | H54: 98757524.42 | I54: 110460 | J54: 35140682.19 | K54: 61840169.77 | L54: =L53*(1+DSWRESR!$I$3) -> 49496693.56 | M54: 61950629.77 | N54: =J54+M54+L54 -> 146588005.5 | O54: -47830481.1 | P54: -2613042891 | Q54: 13762251.76 | R54: -499243556.7 | S54: 13762251.76 | T54: -499243556.7 | U54: 13762251.76 | V54: -499243556.7
A55: 2046 | B55: 28171129.05 | C55: 19879415.19 | D55: 6534386.392 | E55: =$B$3*'Population Estimates'!$E$4*$B$5^(A55-$A$24)*$B$4 -> 25788884.48 | F55: 0 | G55: =G54*(1+DSWRESR!$I$3) -> 21796738.59 | H55: 102170553.7 | I55: 110460 | J55: 36303632.01 | K55: 61840169.77 | L55: =L54*(1+DSWRESR!$I$3) -> 51476561.3 | M55: 61950629.77 | N55: 149730823.1 | O55: -47560269.38 | P55: -2765124876 | Q55: 16070820.54 | R55: -503142478.5 | S55: 16070820.54 | T55: -503142478.5 | U55: 16070820.54 | V55: -503142478.5
A56: 2047 | B56: 29103427.67 | C56: 20537306.86 | D56: 6750636.134 | E56: =$B$3*'Population Estimates'!$E$4*$B$5^(A56-$A$24)*$B$4 -> 26642344.82 | F56: 0 | G56: =G55*(1+DSWRESR!$I$3) -> 22668608.14 | H56: 105702323.6 | I56: 110460 | J56: 37505068.62 | K56: =IF(ROW()-24<$N$10,0,$N$14) -> 61840169.77 | L56: =L55*(1+DSWRESR!$I$3) -> 53535623.76 | M56: 61950629.77 | N56: =J56+M56+L56 -> 152991322.2 | O56: =H56-N56 -> -47288998.53 | P56: -2923018870 | Q56: 18447906.08 | R56: -504820271.5 | S56: 18447906.08 | T56: -504820271.5 | U56: 18447906.08 | V56: -504820271.5
A57: 2048 | B57: =B56*$B$5 -> 30066579.89 | C57: =C56*$B$5 -> 21216970.88 | D57: 6974042.471 | E57: =$B$3*'Population Estimates'!$E$4*$B$5^(A57-$A$24)*$B$4 -> 27524049.67 | F57: 0 | G57: =G56*(1+DSWRESR!$I$3) -> 23575352.46 | H57: 109356995.4 | I57: 110460 | J57: =J56*$B$5 -> 38746265.72 | K57: 61840169.77 | L57: =L56*(1+DSWRESR!$I$3) -> 55677048.71 | M57: =K57+I56 -> 61950629.77 | N57: 156373944.2 | O57: -47016948.83 | P57: =P56*$B$6+O57 -> -3086956574 | Q57: 20895460.54 | R57: -504117621.8 | S57: 20895460.54 | T57: -504117621.8 | U57: 20895460.54 | V57: -504117621.8
A58: 2049 | B58: 31061606.78 | C58: 21919127.78 | D58: 7204842.243 | E58: =$B$3*'Population Estimates'!$E$4*$B$5^(A58-$A$24)*$B$4 -> 28434933.77 | F58: 0 | G58: =G57*(1+DSWRESR!$I$3) -> 24518366.56 | H58: 113138877.1 | I58: 110460 | J58: 40028539.14 | K58: 61840169.77 | L58: =L57*(1+DSWRESR!$I$3) -> 57904130.66 | M58: 61950629.77 | N58: 159883299.6 | O58: -46744422.44 | P58: -3257179259 | Q58: 23415488.1 | R58: -500866838.6 | S58: 23415488.1 | T58: -500866838.6 | U58: 23415488.1 | V58: -500866838.6
A59: 2050 | B59: 32089563.2 | C59: 22644521.95 | D59: 7443280.129 | E59: =$B$3*'Population Estimates'!$E$4*$B$5^(A59-$A$24)*$B$4 -> 29375962.77 | F59: 0 | G59: =G58*(1+DSWRESR!$I$3) -> 25499101.22 | H59: 117052429.3 | I59: 110460 | J59: 41353248.27 | K59: 61840169.77 | L59: =L58*(1+DSWRESR!$I$3) -> 60220295.88 | M59: 61950629.77 | N59: 163524173.9 | O59: -46471744.65 | P59: -3433938174 | Q59: 26010046.12 | R59: -494891466 | S59: 26010046.12 | T59: -494891466 | U59: 26010046.12 | V59: -494891466
A60: 2051 | B60: 33151538.93 | C60: 23393922.39 | D60: 7689608.907 | E60: =$B$3*'Population Estimates'!$E$4*$B$5^(A60-$A$24)*$B$4 -> 30348134.3 | F60: 0 | G60: =G59*(1+DSWRESR!$I$3) -> 26519065.27 | H60: 121102269.8 | I60: 110460 | J60: 42721797.47 | K60: 61840169.77 | L60: =L59*(1+DSWRESR!$I$3) -> 62629107.72 | M60: 61950629.77 | N60: 167301535 | O60: -46199265.17 | P60: -3617494966 | Q60: 28681246.41 | R60: -486005878.3 | S60: 28681246.41 | T60: -486005878.3 | U60: 28681246.41 | V60: -486005878.3
A61: 2052 | B61: 34248659.81 | C61: 24168123.57 | D61: 7944089.718 | E61: =$B$3*'Population Estimates'!$E$4*$B$5^(A61-$A$24)*$B$4 -> 31352478.98 | F61: 0 | G61: =G60*(1+DSWRESR!$I$3) -> 27579827.88 | H61: 125293180 | I61: 0 | J61: 44135637.6 | K61: 61840169.77 | L61: =L60*(1+DSWRESR!$I$3) -> 65134272.03 | M61: 61950629.77 | N61: 171220539.4 | O61: -45927359.43 | P61: -3808122124 | Q61: 31431256.49 | R61: -474014856.9 | S61: 31431256.49 | T61: -474014856.9 | U61: 31431256.49 | V61: -474014856.9
A62: 2053 | B62: 35382088.94 | C62: 24967946.26 | D62: 8206992.346 | E62: =$B$3*'Population Estimates'!$E$4*$B$5^(A62-$A$24)*$B$4 -> 32390061.56 | F62: 0 | G62: =G61*(1+DSWRESR!$I$3) -> 28683021 | H62: 129630110.1 | I62: 0 | J62: 45596267.52 | K62: 61840169.77 | L62: =L61*(1+DSWRESR!$I$3) -> 67739642.91 | M62: 61840169.77 | N62: 175176080.2 | O62: -45545970.09 | P62: -4005992979 | Q62: 34372760.86 | R62: -458602690.3 | S62: 34372760.86 | T62: -458602690.3 | U62: 34372760.86 | V62: -458602690.3
A63: 2054 | B63: 36553027.9 | C63: 25794238.38 | D63: 8478595.504 | E63: =$B$3*'Population Estimates'!$E$4*$B$5^(A63-$A$24)*$B$4 -> 33461982.02 | F63: 0 | G63: =G62*(1+DSWRESR!$I$3) -> 29830341.84 | H63: 134118185.6 | I63: 0 | J63: 47105235.7 | K63: 61840169.77 | L63: =L62*(1+DSWRESR!$I$3) -> 70449228.62 | M63: 61840169.77 | N63: 179394634.1 | O63: -45276448.44 | P63: -4211509147 | Q63: 37287122.27 | R63: -439659675.7 | S63: 37287122.27 | T63: -439659675.7 | U63: 37287122.27 | V63: -439659675.7
A64: 2055 | B64: 37762718.06 | C64: 26647875.9 | D64: 8759187.129 | E64: =$B$3*'Population Estimates'!$E$4*$B$5^(A64-$A$24)*$B$4 -> 34569376.75 | F64: 0 | G64: =G63*(1+DSWRESR!$I$3) -> 31023555.51 | H64: 138762713.3 | I64: 0 | J64: 48664141.84 | K64: 61840169.77 | L64: =L63*(1+DSWRESR!$I$3) -> 73267197.77 | M64: 61840169.77 | N64: 183771509.4 | O64: -45008796.04 | P64: -4424978309 | Q64: 40287143.08 | R64: -416958919.6 | S64: 40287143.08 | T64: -416958919.6 | U64: 40287143.08 | V64: -416958919.6
A65: 2056 | B65: 39012441.84 | C65: 27529763.8 | D65: 9049064.686 | E65: =$B$3*'Population Estimates'!$E$4*$B$5^(A65-$A$24)*$B$4 -> 35713419.72 | F65: 0 | G65: =G64*(1+DSWRESR!$I$3) -> 32264497.73 | H65: 143569187.8 | I65: 0 | J65: 50274638.6 | K65: 61840169.77 | L65: =L64*(1+DSWRESR!$I$3) -> 76197885.68 | M65: 61840169.77 | N65: 188312694.1 | O65: -44743506.28 | P65: -4646720947 | Q65: 43375226.56 | R65: -390262049.8 | S65: 43375226.56 | T65: -390262049.8 | U65: 43375226.56 | V65: -390262049.8
A66: 2057 | B66: 40303524.12 | C66: 28440837 | D66: 9348535.484 | E66: =$B$3*'Population Estimates'!$E$4*$B$5^(A66-$A$24)*$B$4 -> 36895323.78 | F66: 0 | G66: =G65*(1+DSWRESR!$I$3) -> 33555077.64 | H66: 148543298 | I66: 0 | J66: 51938433.34 | K66: 61840169.77 | L66: =L65*(1+DSWRESR!$I$3) -> 79245801.11 | M66: 61840169.77 | N66: 193024404.2 | O66: -44481106.19 | P66: -4877070892 | Q66: 46553838.24 | R66: -359318693.6 | S66: 46553838.24 | T66: -359318693.6 | U66: 46553838.24 | V66: -359318693.6
A67: 2058 | B67: 41637333.63 | C67: 29382061.37 | D67: 9657917.004 | E67: =$B$3*'Population Estimates'!$E$4*$B$5^(A67-$A$24)*$B$4 -> 38116341.91 | F67: 0 | G67: =G66*(1+DSWRESR!$I$3) -> 34897280.75 | H67: 153690934.7 | I67: 0 | J67: 53657289.88 | K67: 61840169.77 | L67: =L66*(1+DSWRESR!$I$3) -> 82415633.15 | M67: 61840169.77 | N67: 197913092.8 | O67: -44222158.15 | P67: -5116375885 | Q67: 49825507.31 | R67: -323865934 | S67: 49825507.31 | T67: -323865934 | U67: 49825507.31 | V67: -323865934
A68: 2059 | B68: 43015284.39 | C68: 30354434.72 | D68: 9977537.231 | E68: =$B$3*'Population Estimates'!$E$4*$B$5^(A68-$A$24)*$B$4 -> 39377768.56 | F68: 0 | G68: =G67*(1+DSWRESR!$I$3) -> 36293171.98 | H68: 159018196.9 | I68: 0 | J68: 55433030.47 | K68: 61840169.77 | L68: =L67*(1+DSWRESR!$I$3) -> 85712258.48 | M68: 61840169.77 | N68: 202985458.7 | O68: -43967261.84 | P68: -5364998183 | Q68: 53192827.98 | R68: -283627743.4 | S68: 53192827.98 | T68: -283627743.4 | U68: 53192827.98 | V68: -283627743.4
A69: 2060 | B69: 44438837.21 | C69: 31358987.91 | D69: 10307735.01 | E69: =$B$3*'Population Estimates'!$E$4*$B$5^(A69-$A$24)*$B$4 -> 40680941.01 | F69: 0 | G69: =G68*(1+DSWRESR!$I$3) -> 37744898.86 | H69: 164531400 | I69: 0 | J69: 57267537.62 | K69: 61840169.77 | L69: =L68*(1+DSWRESR!$I$3) -> 89140748.82 | M69: 61840169.77 | N69: 208248456.2 | O69: -43717056.22 | P69: -5623315166 | Q69: 56658460.91 | R69: -238314392.2 | S69: 56658460.91 | T69: -238314392.2 | U69: 56658460.91 | V69: -238314392.2
A70: 2061 | B70: 45909501.25 | C70: 32396785.9 | D70: 10648860.39 | E70: =$B$3*'Population Estimates'!$E$4*$B$5^(A70-$A$24)*$B$4 -> 42027240.8 | F70: 0 | G70: =G69*(1+DSWRESR!$I$3) -> 39254694.81 | H70: 170237083.1 | I70: 0 | J70: 59162756.17 | K70: 61840169.77 | L70: =L69*(1+DSWRESR!$I$3) -> 92706378.77 | M70: 61840169.77 | N70: 213709304.7 | O70: -43472221.56 | P70: -5891719994 | Q70: 60225134.59 | R70: -187621833.3 | S70: 60225134.59 | T70: -187621833.3 | U70: 60225134.59 | V70: -187621833.3
A71: 2062 | B71: 47428835.62 | C71: 33468928.9 | D71: 11001275.01 | E71: =$B$3*'Population Estimates'!$E$4*$B$5^(A71-$A$24)*$B$4 -> 43418095.19 | F71: 0 | G71: =G70*(1+DSWRESR!$I$3) -> 40824882.6 | H71: 176142017.3 | I71: 0 | J71: 61120695.29 | K71: 61840169.77 | L71: =L70*(1+DSWRESR!$I$3) -> 96414633.92 | M71: 61840169.77 | N71: 219375499 | O71: -43233481.67 | P71: -6170622276 | Q71: 63895646.84 | R71: -131231059.8 | S71: 63895646.84 | T71: -131231059.8 | U71: 63895646.84 | V71: -131231059.8
A72: 2063 | B72: 48998451.02 | C72: 34576553.52 | D72: 11365352.48 | E72: =$B$3*'Population Estimates'!$E$4*$B$5^(A72-$A$24)*$B$4 -> 44854978.67 | F72: 0 | G72: =G71*(1+DSWRESR!$I$3) -> 42457877.91 | H72: 182253213.6 | I72: 0 | J72: 63143430.69 | K72: 61840169.77 | L72: =L71*(1+DSWRESR!$I$3) -> 100271219.3 | M72: 61840169.77 | N72: 225254819.7 | O72: -43001606.13 | P72: -6460448773 | Q72: 67672866.2 | R72: -68807436.01 | S72: 67672866.2 | T72: -68807436.01 | U72: 67672866.2 | V72: -68807436.01
A73: 2064 | B73: 50620011.45 | C73: 35720834 | D73: 11741478.78 | E73: =$B$3*'Population Estimates'!$E$4*$B$5^(A73-$A$24)*$B$4 -> 46339414.55 | F73: 0 | G73: =G72*(1+DSWRESR!$I$3) -> 44156193.02 | H73: 188577931.8 | I73: 0 | J73: 65233106.72 | K73: 61840169.77 | L73: =L72*(1+DSWRESR!$I$3) -> 104282068 | M73: 61840169.77 | N73: 231355344.5 | O73: -42777412.74 | P73: -6761644137 | Q73: 71559733.45 | R73: -9.834766388e-07 | S73: 71559733.45 | T73: 6.556510925e-07 | U73: 71559733.45 | V73: -6.258487701e-07
F74: =SUM(F24:F73) -> 150000000 | K74: =SUM(K24:K73) -> 3092008489
R75: Estimated Factors to make Final-Year Debt (the blue cells) almost zero: | S75: 3.20085321 | T75: 0 | U75: 2.467384349

Sheet Summary with Elasticity (hidden)
I3: Average Water Sales Rev: | K3: 1517116.02
I4: Average Impact Fee Rev: | K4: 420937.9
D5: With Current P. Tax Levy | E5: With Max P. Tax Levy | F5: With Max P. Tax and GR Nuke | I5: Average Impact Fee: | K5: 6438
C6: Average Property Tax Revenues | D6: 1591855.1 | E6: 2635265.575 | F6: 2635265.575
C7: Annual Impact Fee Revenues | D7: 420937.9 | E7: 420937.9 | F7: 420937.9
C8: Average Water Sales Revenues | D8: 1517116.02 | E8: 1517116.02 | F8: 1517116.02
C9: Green River Nuclear Plant Water Lease Revenue | D9: 100000 | E9: 100000 | F9: 1000000
C10: Average Total Revenues | D10: =3529909.02+D9 -> 3629909.02 | E10: =4573319.49093572+E9 -> 4673319.491 | F10: 5573319.491
C12: Average Annual Debt Service | D12: 3251475.4 | E12: 3251475.4 | F12: 3251475.4
C13: Operating Expenses | D13: 2463533 | E13: 2463533 | F13: 2463533
C14: Average Total Expenses | D14: 5715008 | E14: 5715008 | F14: 5715008
C16: Average Annual Deficit | D16: =D14-D10 -> 2085098.98 | E16: =E14-E10 -> 1041688.509 | F16: =F14-F10 -> 141688.5091
C18: Required Increase in Impact Fees | D18: =D16/$K$4 -> 4.953459834 | E18: =E16/$K$4 -> 2.47468453 | F18: =F16/$K$4 -> 0.3366019289
C19: New Average Impact Fees | D19: =(D18+1)*$K$5 -> 38328.37441 | E19: =(E18+1)*$K$5 -> 22370.019 | F19: =(F18+1)*$K$5 -> 8605.043218
C21: Required Increase in Water Rates w/o Elasticity | D21: =D16/$K$3 -> 1.374383338 | E21: =E16/$K$3 -> 0.6866241575 | F21: =F16/$K$3 -> 0.0933933247
C22: Required Increase in Water Rates w/ 0.5 Elasticity | D22: =(D21*0.5)+D21 -> 2.061575007 | E22: =(E21*0.5)+E21 -> 1.029936236 | F22: =(F21*0.5)+F21 -> 0.1400899871 | G22: Gail: Not sure if these elasticity calculations are done correctly

Sheet Second Scenario
B1: ='Revenues and Expenses'!B3 -> 9938660 | C1: 2013 Property Tax Collections | O1: Scenario A | P1: Scenario B | Q1: DSWRESR!i3 gives the FERC "escalation rate"
B2: ='Revenues and Expenses'!B20 -> 7013377 | C2: 2013 water sales revenue Revenue | O2: FERC Low Cost | P2: FERC High Cost Estimate
B3: ='Revenues and Expenses'!B8 -> 6102 | C3: 2013 Impact Fee per ERU | N3: Cost Estimate | O3: ='Revenues and Expenses'!L7 -> 1328461944 | P3: ='Revenues and Expenses'!$L$8 -> 1750908555
B4: ='Population Estimates'!I9 -> 0.0330941162 | C4: GOPB 50-Year Household Growth Rate Projection | N4: LPP O&M Costs (Column K) | O4: ='Revenues and Expenses'!$L$14 -> 23493230.61 | P4: ='Revenues and Expenses'!$L$15 -> 62867794.27
B5: =1+B4 -> 1.033094116 | C5: GOPB 50-Year Household Growth Rate Projection, plus one. | N5: LPP Power sale revenue (Column F) | O5: ='Revenues and Expenses'!$L$18 -> 9947746.963 | P5: ='Revenues and Expenses'!$L$19 -> 72005740.31
B6: 1.04 | C6: <- enter 1 plus assumed interest rate on reserves | N6: B | O6: <- enter A or B (capitalized) for which Scenario you want to analyze
C7: Q µ P^(-1/2) is the assumed demand curve, so revenues R = P^(1/2), so to increase R by a factor of "x" requires P to go up by a factor of "x^2". | N7: =IF($N$6="A", $O$3,$P$3) -> 1750908555 | O7: Loan Amount
B8: =(1+'Population Estimates'!I10)^(2060-2010) -> 4.192716291 | C8: If water sales revenue rises by a factor > this, (Q_2060 under new water price) < (Q_2010 under current water price). | N8: =A73 -> 2064 | O8: year when all debt has to be paid back
C9: Given unchanged impact fees: (see Column P) | N9: =A24 -> 2015 | O9: initial year of spreadsheet
B10: =S75 -> 3.576877855 | C10: The factor by which water sales revenue need to increase to eliminate the debt by 2062, minus one | N10: 10 | O10: <- enter number of initial payment-free years (can be zero); water rates & impact fees don't change during this time
B11: =B10+1 -> 4.576877855 | C11: The factor by which water sales revenue need to increase to eliminate the debt by 2062. | N11: 0.04 | O11: <- enter interest rate | U11: Total Expected Project Costs
B12: =B11^2 -> 20.9478109 | C12: The factor by which water prices need to increase to eliminate the debt by 2062. | N12: =N8-N9+1-N10 -> 40 | O12: years allowed for paying back the loan | U12: Cost w/ interest and O&M | V12: =K74+L74 -> 5237815370
B13: =1/B11 -> 0.2184895537 | C13: The factor by which water demanded will change vs. base case when water prices rise enough to eliminate debt by 2062 (since revenue = PQ µ B5^(-2t) Q^(-2) Q = B5^(-2t) (1/Q) ). | N13: =N7*(1+N11)^N10 -> 2591772381 | O13: Loan Amount after initial years of negative amortization | U13: minus power sale revenue | V13: =V12-G74 -> 5237815370
C14: Given unchanged water prices: (see Column R) | N14: =-PMT(N11,N12,N13) -> 130945384.2 | O14: Annual Debt Service
B15: =U75 -> 2.757243727 | C15: The factor by which Impact Fees need to increase to eliminate the debt by 2062, minus one. | N15: If either this -> | O15: =R73 -> 6.705522537e-07 | P15: or this -> | Q15: =T73 -> 4.023313522e-07 | R15: is not zero,
B16: =B15+1 -> 3.757243727 | C16: The factor by which Impact Fees need to increase to eliminate the debt by 2062. | O16: click on this button -> | Q16: to make them zero.
B17: =B3*B16 -> 22926.70122 | C17: 2013 average Impact Fee per ERU, if Impact Fees increased as much as needed to eliminate the debt by 2062. | N17: (This will ensure that R75 and T75 change in order to make Q73, S73, and hence U73 equal to zero.)
C18: Given Split Between Impact Fees and Water Rates: (see Column T) | M18: 0.5 | N18: <- enter Impact Fees' portion of Split financing
B19: =B10*$M$19 + 1 -> 2.788438928 | C19: The factor by which water sales revenue needs to increase to eliminate the debt by 2062. | M19: =1-M18 -> 0.5 | N19: Water Rates
B20: =B19^2 -> 7.775391653 | C20: The factor by which water prices need to increase to eliminate the debt by 2062.
B21: =1+B15*$M$18 -> 2.378621864 | C21: The factor by which Impact Fees need to increase to eliminate the debt by 2062. | J21: =1/B19 -> 0.3586235976 | K21: The factor by which water demanded will change vs. base case if water prices behave this way.
B22: =B3*B21 -> 14514.35061 | C22: 2013 average Impact Fee per ERU, if Impact Fees increased as much as needed to eliminate the debt by 2062.
A23: Year | B23: Property Taxes | C23: water sales revenue | D23: Power sale revenue and Surcharges | E23: Impact Fees | F23: Real Estate sale revenue | G23: LPP Power sale revenue | H23: TOTAL REVENUES | I23: Annual Debt Service on Existing Debt | J23: Existing O&M Costs | K23: Annual LPP Debt Service | L23: LPP O&M Costs | M23: Total Annual Debt Service | N23: TOTAL EXPENSES | O23: Net Annual Surplus (Deficit) | P23: Cumulative Surplus (Deficit) | Q23: Repayment Option 1: Annual Surplus (Deficit) w/ Increased Water Rate sale revenue | R23: Repayment Option 1: Cumulative Surplus (Deficit) w/ Increased Water Rate sale revenue | S23: Repayment Option 2: Annual Surplus (Deficit) w/ Increased Impact Fees | T23: Repayment Option 2: Cumulative Surplus (Deficit) w/ Increased Impact Fees | U23: Repayment Option 3: Annual Surplus (Deficit) w/ 50/50 Split Between Impact Fees and Water Rates | V23: Repayment Option 3: Cumulative Surplus (Deficit) w/ Split Between Impact Fees and Water Rates
A24: 2015 | B24: ='Revenues and Expenses'!B3*B5 -> 10267571.17 | C24: ='Revenues and Expenses'!B20*$B$5 -> 7245478.513 | D24: =('Revenues and Expenses'!B19+'Revenues and Expenses'!B21) * $B$5 -> 2381597.032 | E24: =$B$3*'Population Estimates'!$E$4*$B$5^(A24-$A$24)*$B$4 -> 9399311.126 | F24: ='Revenues and Expenses'!$D$27/10 -> 15000000 | G24: 0 | H24: =B24+C24+E24+D24+G24+F24 -> 44293957.84 | I24: 7026322 | J24: ='Revenues and Expenses'!I13 -> 13231636 | K24: =IF(ROW()-24<$N$10,0,$N$14) -> 0 | L24: 0 | M24: =K24+I24 -> 7026322 | N24: =J24+M24+L24 -> 20257958 | O24: =H24-N24 -> 24035999.84 | P24: =O24 -> 24035999.84 | Q24: =IF(ROW()-24<$N$10,O24,O24+$B$10*C24) -> 24035999.84 | R24: =IF(ROW()-24<$N$10,P24,P24+$B$10*D24) -> 24035999.84 | S24: =IF(ROW()-24<$N$10,Q24,Q24+$B$10*E24) -> 24035999.84 | T24: =IF(ROW()-24<$N$10,R24,R24+$B$10*G24) -> 24035999.84 | U24: 24035999.84 | V24: 24035999.84
A25: =A24+1 -> 2016 | B25: =B24*$B$5 -> 10607367.36 | C25: 7485261.221 | D25: =D24*$B$5 -> 2460413.88 | E25: =$B$3*'Population Estimates'!$E$4*$B$5^(A25-$A$24)*$B$4 -> 9710373.021 | F25: ='Revenues and Expenses'!$D$27/10 -> 15000000 | G25: 0 | H25: =B25+C25+E25+D25+G25+F25 -> 45263415.48 | I25: 7039458 | J25: =J24*$B$5 -> 13669525.3 | K25: 0 | L25: 0 | M25: =K25+I24 -> 7026322 | N25: =J25+M25+L25 -> 20695847.3 | O25: 24567568.19 | P25: =P24*$B$6+O25 -> 49565008.02 | Q25: =IF(ROW()-24<$N$10,O25,O25+$B$10*C25) -> 24567568.19 | R25: =IF(ROW()-24<$N$10,P25,P25+$B$10*D25) -> 49565008.02 | S25: 24567568.19 | T25: 49565008.02 | U25: 24567568.19 | V25: 49565008.02
A26: =A25+1 -> 2017 | B26: 10958408.81 | C26: 7732979.326 | D26: 2541839.103 | E26: =$B$3*'Population Estimates'!$E$4*$B$5^(A26-$A$24)*$B$4 -> 10031729.23 | F26: ='Revenues and Expenses'!$D$27/10 -> 15000000 | G26: 0 | H26: 46264956.47 | I26: 7048107 | J26: 14121906.16 | K26: 0 | L26: 0 | M26: 7039458 | N26: 21161364.16 | O26: 25103592.32 | P26: 76651200.66 | Q26: 25103592.32 | R26: 76651200.66 | S26: 25103592.32 | T26: 76651200.66 | U26: 25103592.32 | V26: 76651200.66
A27: 2018 | B27: 11321067.66 | C27: 7988895.442 | D27: 2625959.022 | E27: =$B$3*'Population Estimates'!$E$4*$B$5^(A27-$A$24)*$B$4 -> 10363720.45 | F27: ='Revenues and Expenses'!$D$27/10 -> 15000000 | G27: 0 | H27: 47299642.58 | I27: 7048318 | J27: 14589258.16 | K27: 0 | L27: 0 | M27: 7048107 | N27: 21637365.16 | O27: 25662277.41 | P27: 105379526.1 | Q27: 25662277.41 | R27: 105379526.1 | S27: 25662277.41 | T27: 105379526.1 | U27: 25662277.41 | V27: 105379526.1
A28: 2019 | B28: 11695728.39 | C28: =C27*$B$5 -> 8253280.876 | D28: 2712862.815 | E28: =$B$3*'Population Estimates'!$E$4*$B$5^(A28-$A$24)*$B$4 -> 10706698.62 | F28: ='Revenues and Expenses'!$D$27/10 -> 15000000 | G28: 0 | H28: 48368570.7 | I28: 7050648 | J28: 15072076.77 | K28: 0 | L28: 0 | M28: 7048318 | N28: =J28+M28+L28 -> 22120394.77 | O28: 26248175.93 | P28: 135842883.1 | Q28: 26248175.93 | R28: 135842883.1 | S28: 26248175.93 | T28: 135842883.1 | U28: 26248175.93 | V28: 135842883.1
A29: 2020 | B29: 12082788.19 | C29: 8526415.913 | D29: 2802642.612 | E29: =$B$3*'Population Estimates'!$E$4*$B$5^(A29-$A$24)*$B$4 -> 11061027.34 | F29: ='Revenues and Expenses'!$D$27/10 -> 15000000 | G29: 0 | H29: 49472874.06 | I29: 6451090 | J29: 15570873.83 | K29: 0 | L29: 0 | M29: 7050648 | N29: 22621521.83 | O29: 26851352.23 | P29: 168127950.6 | Q29: 26851352.23 | R29: 168127950.6 | S29: 26851352.23 | T29: 168127950.6 | U29: 26851352.23 | V29: 168127950.6
A30: 2021 | B30: 12482657.38 | C30: 8808590.112 | D30: 2895393.592 | E30: =$B$3*'Population Estimates'!$E$4*$B$5^(A30-$A$24)*$B$4 -> 11427082.27 | F30: ='Revenues and Expenses'!$D$27/10 -> 15000000 | G30: 0 | H30: 50613723.36 | I30: 6456332 | J30: 16086178.13 | K30: 0 | L30: 0 | M30: 6451090 | N30: 22537268.13 | O30: 28076455.22 | P30: 202929523.9 | Q30: 28076455.22 | R30: 202929523.9 | S30: 28076455.22 | T30: 202929523.9 | U30: 28076455.22 | V30: 202929523.9
A31: 2022 | B31: 12895759.9 | C31: 9100102.616 | D31: 2991214.084 | E31: =$B$3*'Population Estimates'!$E$4*$B$5^(A31-$A$24)*$B$4 -> 11805251.46 | F31: ='Revenues and Expenses'!$D$27/10 -> 15000000 | G31: 0 | H31: 51792328.06 | I31: 6138580 | J31: 16618535.98 | K31: 0 | L31: 0 | M31: 6456332 | N31: 23074867.98 | O31: 28717460.07 | P31: 239764164.9 | Q31: 28717460.07 | R31: 239764164.9 | S31: 28717460.07 | T31: 239764164.9 | U31: 28717460.07 | V31: 239764164.9
A32: 2023 | B32: 13322533.68 | C32: 9401262.47 | D32: 3090205.671 | E32: =$B$3*'Population Estimates'!$E$4*$B$5^(A32-$A$24)*$B$4 -> 12195935.82 | F32: ='Revenues and Expenses'!$D$27/10 -> 15000000 | G32: 0 | H32: 53009937.64 | I32: 5095230 | J32: 17168511.74 | K32: 0 | L32: 0 | M32: 6138580 | N32: 23307091.74 | O32: 29702845.89 | P32: 279057577.4 | Q32: 29702845.89 | R32: =R31*$B$6+Q32 -> 279057577.4 | S32: =IF(ROW()-24<$N$10,O32,O32+$B$15*E32) -> 29702845.89 | T32: =T31*$B$6+S32 -> 279057577.4 | U32: =IF(ROW()-24<$N$10,O32,O32 + $M$19*C32*$B$10 + $M$18*E32*$B$15) -> 29702845.89 | V32: =V31*$B$6+U32 -> 279057577.4
A33: 2024 | B33: 13763431.15 | C33: 9712388.942 | D33: 3192473.297 | E33: =$B$3*'Population Estimates'!$E$4*$B$5^(A33-$A$24)*$B$4 -> 12599549.54 | F33: ='Revenues and Expenses'!$D$27/10 -> 15000000 | G33: 0 | H33: 54267842.93 | I33: 5101740 | J33: 17736688.47 | K33: 0 | L33: 0 | M33: 5095230 | N33: 22831918.47 | O33: 31435924.46 | P33: 321655805 | Q33: 31435924.46 | R33: 321655805 | S33: 31435924.46 | T33: 321655805 | U33: 31435924.46 | V33: 321655805
A34: 2025 | B34: 14218919.74 | C34: 10033811.87 | D34: 3298125.379 | E34: =$B$3*'Population Estimates'!$E$4*$B$5^(A34-$A$24)*$B$4 -> 13016520.49 | F34: 0 | G34: 0 | H34: 40567377.49 | I34: 5109185 | J34: 18323668.49 | K34: 130945384.2 | L34: 0 | M34: 136047124.2 | N34: 154370792.7 | O34: -113803415.3 | P34: 220718621.9 | Q34: -77913695.77 | R34: 256608341.4 | S34: -77913695.77 | T34: 256608341.4 | U34: -77913695.77 | V34: 256608341.4
A35: 2026 | B35: 14689482.32 | C35: 10365872.01 | D35: 3407273.923 | E35: =$B$3*'Population Estimates'!$E$4*$B$5^(A35-$A$24)*$B$4 -> 13447290.74 | F35: 0 | G35: =IF($N$6="A", $O$5,$P$5) -> 72005740.31 | H35: 113915659.3 | I35: 5099965 | J35: 18930074.11 | K35: 130945384.2 | L35: =IF($N$6="A", $O$4,$P$4) -> 62867794.27 | M35: 136054569.2 | N35: 217852437.6 | O35: -103936778.3 | P35: 125610588.5 | Q35: -66859320.28 | R35: 200013354.8 | S35: -66859320.28 | T35: 200013354.8 | U35: -66859320.28 | V35: 200013354.8
A36: 2027 | B36: 15175617.76 | C36: 10708921.38 | D36: 3520034.642 | E36: =$B$3*'Population Estimates'!$E$4*$B$5^(A36-$A$24)*$B$4 -> 13892316.94 | F36: 0 | G36: =G35*(1+DSWRESR!$I$3) -> 74885969.93 | H36: 118182860.6 | I36: 3178350 | J36: 19556548.18 | K36: 130945384.2 | L36: =L35*(1+DSWRESR!$I$3) -> 65382506.04 | M36: 136045349.2 | N36: 220984403.5 | O36: -102801542.8 | P36: 27833469.19 | Q36: -64497039.08 | R36: 143516849.9 | S36: -64497039.08 | T36: 143516849.9 | U36: -64497039.08 | V36: 143516849.9
A37: 2028 | B37: 15677841.42 | C37: 11063323.67 | D37: 3636527.078 | E37: =$B$3*'Population Estimates'!$E$4*$B$5^(A37-$A$24)*$B$4 -> 14352070.89 | F37: 0 | G37: =G36*(1+DSWRESR!$I$3) -> 77881408.72 | H37: 122611171.8 | I37: 3178995 | J37: 20203754.86 | K37: 130945384.2 | L37: =L36*(1+DSWRESR!$I$3) -> 67997806.28 | M37: 134123734.2 | N37: 222325295.4 | O37: -99714123.6 | P37: -70767315.64 | Q37: -60141966.17 | R37: 89115557.7 | S37: -60141966.17 | T37: 89115557.7 | U37: -60141966.17 | V37: 89115557.7
A38: 2029 | B38: 16196685.72 | C38: 11429454.59 | D38: 3756874.728 | E38: =$B$3*'Population Estimates'!$E$4*$B$5^(A38-$A$24)*$B$4 -> 14827039.99 | F38: 0 | G38: =G37*(1+DSWRESR!$I$3) -> 80996665.07 | H38: 127206720.1 | I38: 3188875 | J38: 20872380.27 | K38: 130945384.2 | L38: =L37*(1+DSWRESR!$I$3) -> 70717718.53 | M38: 134124379.2 | N38: 225714478 | O38: -98507757.94 | P38: -172105766.2 | Q38: -57625994.93 | R38: 35054185.08 | S38: -57625994.93 | T38: 35054185.08 | U38: -57625994.93 | V38: 35054185.08
A39: 2030 | B39: 16732700.72 | C39: 11807702.29 | D39: 3881205.176 | E39: =$B$3*'Population Estimates'!$E$4*$B$5^(A39-$A$24)*$B$4 -> 15317727.77 | F39: 0 | G39: =G38*(1+DSWRESR!$I$3) -> 84236531.68 | H39: 131975867.6 | I39: 1786290 | J39: 21563133.25 | K39: 130945384.2 | L39: =L38*(1+DSWRESR!$I$3) -> 73546427.27 | M39: 134134259.2 | N39: 229243819.8 | O39: -97267952.13 | P39: -276257949 | Q39: -55033243.3 | R39: -18576890.82 | S39: -55033243.3 | T39: -18576890.82 | U39: -55033243.3 | V39: -18576890.82
A40: 2031 | B40: 17286454.66 | C40: 12198467.76 | D40: 4009650.231 | E40: =$B$3*'Population Estimates'!$E$4*$B$5^(A40-$A$24)*$B$4 -> 15824654.44 | F40: 0 | G40: =G39*(1+DSWRESR!$I$3) -> 87605992.94 | H40: 136925220 | I40: 1610460 | J40: 22276746.09 | K40: 130945384.2 | L40: =L39*(1+DSWRESR!$I$3) -> 76488284.36 | M40: 132731674.2 | N40: 231496704.7 | O40: -94571484.65 | P40: -381879751.6 | Q40: -50939055.47 | R40: -70259021.92 | S40: -50939055.47 | T40: -70259021.92 | U40: -50939055.47 | V40: -70259021.92
A41: 2032 | B41: =B40*$B$5 -> 17858534.6 | C41: 12602165.27 | D41: 4142346.062 | E41: =$B$3*'Population Estimates'!$E$4*$B$5^(A41-$A$24)*$B$4 -> 16348357.39 | F41: 0 | G41: =G40*(1+DSWRESR!$I$3) -> 91110232.66 | H41: 142061636 | I41: 1610460 | J41: 23013975.31 | K41: 130945384.2 | L41: =L40*(1+DSWRESR!$I$3) -> 79547815.74 | M41: 132555844.2 | N41: 235117635.3 | O41: -93055999.3 | P41: -490210941 | Q41: -47979593.43 | R41: -121048976.2 | S41: -47979593.43 | T41: -121048976.2 | U41: -47979593.43 | V41: -121048976.2
A42: 2033 | B42: 18449547.02 | C42: 13019222.79 | D42: 4279433.344 | E42: =$B$3*'Population Estimates'!$E$4*$B$5^(A42-$A$24)*$B$4 -> 16889391.83 | F42: 0 | G42: =G41*(1+DSWRESR!$I$3) -> 94754641.97 | H42: 147392237 | I42: 1610460 | J42: 23775602.48 | K42: 130945384.2 | L42: =L41*(1+DSWRESR!$I$3) -> 82729728.37 | M42: 132555844.2 | N42: 239061175.1 | O42: -91668938.14 | P42: -601488316.7 | Q42: -45100768.46 | R42: -170991703.7 | S42: -45100768.46 | T42: -170991703.7 | U42: -45100768.46 | V42: -170991703.7
A43: 2034 | B43: 19060118.48 | C43: 13450082.46 | D43: 4421057.408 | E43: =$B$3*'Population Estimates'!$E$4*$B$5^(A43-$A$24)*$B$4 -> 17448331.33 | F43: 0 | G43: =G42*(1+DSWRESR!$I$3) -> 98544827.65 | H43: 152924417.3 | I43: 1610460 | J43: 24562435.03 | K43: 130945384.2 | L43: =L42*(1+DSWRESR!$I$3) -> 86038917.5 | M43: 132555844.2 | N43: 243157196.8 | O43: -90232779.46 | P43: -715780628.9 | Q43: -42123477.36 | R43: -219954849.2 | S43: -42123477.36 | T43: -219954849.2 | U43: -42123477.36 | V43: -219954849.2
A44: 2035 | B44: 19690896.25 | C44: 13895201.05 | D44: 4567368.396 | E44: =$B$3*'Population Estimates'!$E$4*$B$5^(A44-$A$24)*$B$4 -> 18025768.43 | F44: 0 | G44: =G43*(1+DSWRESR!$I$3) -> 102486620.8 | H44: 158665854.9 | I44: 110460 | J44: 25375307.11 | K44: 130945384.2 | L44: =L43*(1+DSWRESR!$I$3) -> 89480474.2 | M44: 132555844.2 | N44: 247411625.6 | O44: -88745770.67 | P44: -833157624.7 | Q44: -39044333.74 | R44: -267797377 | S44: -39044333.74 | T44: -267797377 | U44: -39044333.74 | V44: -267797377
A45: 2036 | B45: 20342549.06 | C45: 14355050.45 | D45: 4718521.417 | E45: =$B$3*'Population Estimates'!$E$4*$B$5^(A45-$A$24)*$B$4 -> 18622315.3 | F45: 0 | G45: =G44*(1+DSWRESR!$I$3) -> 106586085.6 | H45: 164624521.8 | I45: 110460 | J45: 26215080.48 | K45: 130945384.2 | L45: =L44*(1+DSWRESR!$I$3) -> 93059693.17 | M45: 131055844.2 | N45: 250330617.9 | O45: -85706096.07 | P45: -952190025.8 | Q45: -34359834.01 | R45: -312869106 | S45: -34359834.01 | T45: -312869106 | U45: -34359834.01 | V45: -312869106
A46: 2037 | B46: 21015767.74 | C46: 14830118.16 | D46: 4874676.713 | E46: =$B$3*'Population Estimates'!$E$4*$B$5^(A46-$A$24)*$B$4 -> 19238604.37 | F46: 0 | G46: =G45*(1+DSWRESR!$I$3) -> 110849529 | H46: 170808696 | I46: 110460 | J46: 27082645.39 | K46: 130945384.2 | L46: =L45*(1+DSWRESR!$I$3) -> 96782080.89 | M46: 131055844.2 | N46: 254920570.5 | O46: -84111874.54 | P46: -1074389501 | Q46: -31066353.31 | R46: -356450223.6 | S46: -31066353.31 | T46: -356450223.6 | U46: -31066353.31 | V46: -356450223.6
A47: 2038 | B47: 21711266 | C47: 15320907.81 | D47: 5035999.83 | E47: =$B$3*'Population Estimates'!$E$4*$B$5^(A47-$A$24)*$B$4 -> 19875288.98 | F47: 0 | G47: =G46*(1+DSWRESR!$I$3) -> 115283510.2 | H47: 177226972.8 | I47: 110460 | J47: 27978921.61 | K47: 130945384.2 | L47: =L46*(1+DSWRESR!$I$3) -> 100653364.1 | M47: 131055844.2 | N47: 259688130 | O47: -82461157.19 | P47: -1199826239 | Q47: -27660141.32 | R47: -398368373.9 | S47: -27660141.32 | T47: -398368373.9 | U47: -27660141.32 | V47: -398368373.9
A48: 2039 | B48: 22429781.16 | C48: 15827939.71 | D48: 5202661.794 | E48: =$B$3*'Population Estimates'!$E$4*$B$5^(A48-$A$24)*$B$4 -> 20533044.1 | F48: 0 | G48: =G47*(1+DSWRESR!$I$3) -> 119894850.6 | H48: 183888277.3 | I48: 110460 | J48: 28904859.29 | K48: 130945384.2 | L48: =L47*(1+DSWRESR!$I$3) -> 104679498.7 | M48: 131055844.2 | N48: 264640202.2 | O48: -80751924.88 | P48: -1328571213 | Q48: -24137317.83 | R48: -438440426.6 | S48: -24137317.83 | T48: -438440426.6 | U48: -24137317.83 | V48: -438440426.6
A49: 2040 | B49: 23172074.95 | C49: 16351751.39 | D49: 5374839.288 | E49: =$B$3*'Population Estimates'!$E$4*$B$5^(A49-$A$24)*$B$4 -> 21212567.05 | F49: 0 | G49: =G48*(1+DSWRESR!$I$3) -> 124690644.6 | H49: 190801877.3 | I49: 110460 | J49: 29861440.06 | K49: 130945384.2 | L49: =L48*(1+DSWRESR!$I$3) -> 108866678.6 | M49: 131055844.2 | N49: 269783962.9 | O49: -78982085.68 | P49: -1460696147 | Q49: -20493868.24 | R49: -476471911.9 | S49: -20493868.24 | T49: -476471911.9 | U49: -20493868.24 | V49: -476471911.9
A50: 2041 | B50: 23938934.29 | C50: 16892898.15 | D50: 5552714.844 | E50: =$B$3*'Population Estimates'!$E$4*$B$5^(A50-$A$24)*$B$4 -> 21914578.21 | F50: 0 | G50: =G49*(1+DSWRESR!$I$3) -> 129678270.4 | H50: 197977395.9 | I50: 110460 | J50: 30849678.03 | K50: 130945384.2 | L50: =L49*(1+DSWRESR!$I$3) -> 113221345.8 | M50: 131055844.2 | N50: 275126868.1 | O50: -77149472.19 | P50: -1596273465 | Q50: -16725638.88 | R50: -512256427.3 | S50: -16725638.88 | T50: -512256427.3 | U50: -16725638.88 | V50: -512256427.3
A51: 2042 | B51: 24731172.16 | C51: 17451953.69 | D51: 5736477.034 | E51: =$B$3*'Population Estimates'!$E$4*$B$5^(A51-$A$24)*$B$4 -> 22639821.81 | F51: 0 | G51: =G50*(1+DSWRESR!$I$3) -> 134865401.2 | H51: 205424825.9 | I51: 110460 | J51: 31870620.86 | K51: 130945384.2 | L51: =L50*(1+DSWRESR!$I$3) -> 117750199.6 | M51: 131055844.2 | N51: 280676664.7 | O51: -75251838.84 | P51: -1735376243 | Q51: -12828332.17 | R51: -545575016.6 | S51: -12828332.17 | T51: -545575016.6 | U51: -12828332.17 | V51: -545575016.6
A52: 2043 | B52: 25549628.45 | C52: 18029510.67 | D52: 5926320.671 | E52: =$B$3*'Population Estimates'!$E$4*$B$5^(A52-$A$24)*$B$4 -> 23389066.7 | F52: 0 | G52: =G51*(1+DSWRESR!$I$3) -> 140260017.2 | H52: 213154543.7 | I52: 110460 | J52: 32925350.89 | K52: 130945384.2 | L52: =L51*(1+DSWRESR!$I$3) -> 122460207.6 | M52: 131055844.2 | N52: 286441402.7 | O52: -73286859.01 | P52: -1878078151 | Q52: -8797501.559 | R52: -576195518.8 | S52: -8797501.559 | T52: -576195518.8 | U52: -8797501.559 | V52: -576195518.8
A53: 2044 | B53: 26395170.82 | C53: 18626181.39 | D53: 6122447.016 | E53: =$B$3*'Population Estimates'!$E$4*$B$5^(A53-$A$24)*$B$4 -> 24163107.19 | F53: 0 | G53: =G52*(1+DSWRESR!$I$3) -> 145870417.9 | H53: 221177324.3 | I53: 110460 | J53: 34014986.28 | K53: 130945384.2 | L53: =L52*(1+DSWRESR!$I$3) -> 127358615.9 | M53: 131055844.2 | N53: 292429446.4 | O53: -71252122.08 | P53: -2024453400 | Q53: -4628546.343 | R53: -603871885.9 | S53: -4628546.343 | T53: -603871885.9 | U53: -4628546.343 | V53: -603871885.9
A54: 2045 | B54: 27268695.67 | C54: 19242598.4 | D54: 6325063.989 | E54: =$B$3*'Population Estimates'!$E$4*$B$5^(A54-$A$24)*$B$4 -> 24962763.87 | F54: 0 | G54: =G53*(1+DSWRESR!$I$3) -> 151705234.6 | H54: 229504356.6 | I54: 110460 | J54: 35140682.19 | K54: 130945384.2 | L54: =L53*(1+DSWRESR!$I$3) -> 132452960.5 | M54: 131055844.2 | N54: =J54+M54+L54 -> 298649487 | O54: -69145130.4 | P54: -2174576666 | Q54: -316706.3013 | R54: -628343467.6 | S54: -316706.3013 | T54: -628343467.6 | U54: -316706.3013 | V54: -628343467.6
A55: 2046 | B55: 28171129.05 | C55: 19879415.19 | D55: 6534386.392 | E55: =$B$3*'Population Estimates'!$E$4*$B$5^(A55-$A$24)*$B$4 -> 25788884.48 | F55: 0 | G55: =G54*(1+DSWRESR!$I$3) -> 157773444 | H55: 238147259.1 | I55: 110460 | J55: 36303632.01 | K55: 130945384.2 | L55: =L54*(1+DSWRESR!$I$3) -> 137751079 | M55: 131055844.2 | N55: 305110555.2 | O55: -66963296.07 | P55: -2328523029 | Q55: 4142943.889 | R55: -649334262.4 | S55: 4142943.889 | T55: -649334262.4 | U55: 4142943.889 | V55: -649334262.4
A56: 2047 | B56: 29103427.67 | C56: 20537306.86 | D56: 6750636.134 | E56: =$B$3*'Population Estimates'!$E$4*$B$5^(A56-$A$24)*$B$4 -> 26642344.82 | F56: 0 | G56: =G55*(1+DSWRESR!$I$3) -> 164084381.8 | H56: 247118097.3 | I56: 110460 | J56: 37505068.62 | K56: =IF(ROW()-24<$N$10,0,$N$14) -> 130945384.2 | L56: =L55*(1+DSWRESR!$I$3) -> 143261122.1 | M56: 131055844.2 | N56: 311822035 | O56: -64703937.71 | P56: -2486367888 | Q56: 8755500.42 | R56: -666552132.5 | S56: 8755500.42 | T56: -666552132.5 | U56: 8755500.42 | V56: -666552132.5
A57: 2048 | B57: =B56*$B$5 -> 30066579.89 | C57: 21216970.88 | D57: 6974042.471 | E57: =$B$3*'Population Estimates'!$E$4*$B$5^(A57-$A$24)*$B$4 -> 27524049.67 | F57: 0 | G57: =G56*(1+DSWRESR!$I$3) -> 170647757.1 | H57: 256429400 | I57: 110460 | J57: 38746265.72 | K57: 130945384.2 | L57: =L56*(1+DSWRESR!$I$3) -> 148991567 | M57: 131055844.2 | N57: 318793677 | O57: -62364276.99 | P57: -2648186880 | Q57: 13526236.32 | R57: -679687981.5 | S57: 13526236.32 | T57: -679687981.5 | U57: 13526236.32 | V57: -679687981.5
A58: 2049 | B58: 31061606.78 | C58: 21919127.78 | D58: 7204842.243 | E58: =$B$3*'Population Estimates'!$E$4*$B$5^(A58-$A$24)*$B$4 -> 28434933.77 | F58: 0 | G58: =G57*(1+DSWRESR!$I$3) -> 177473667.4 | H58: 266094177.9 | I58: 110460 | J58: 40028539.14 | K58: 130945384.2 | L58: =L57*(1+DSWRESR!$I$3) -> 154951229.7 | M58: 131055844.2 | N58: 326035613.1 | O58: -59941435.15 | P58: -2814055790 | Q58: 18460607.63 | R58: -688414893.1 | S58: 18460607.63 | T58: -688414893.1 | U58: 18460607.63 | V58: -688414893.1
A59: 2050 | B59: 32089563.2 | C59: 22644521.95 | D59: 7443280.129 | E59: =$B$3*'Population Estimates'!$E$4*$B$5^(A59-$A$24)*$B$4 -> 29375962.77 | F59: 0 | G59: =G58*(1+DSWRESR!$I$3) -> 184572614 | H59: 276125942.1 | I59: 110460 | J59: 41353248.27 | K59: 130945384.2 | L59: =L58*(1+DSWRESR!$I$3) -> 161149278.9 | M59: 131055844.2 | N59: 333558371.4 | O59: -57432429.3 | P59: -2984050451 | Q59: 23564259.79 | R59: -692387229.1 | S59: 23564259.79 | T59: -692387229.1 | U59: 23564259.79 | V59: -692387229.1
A60: 2051 | B60: 33151538.93 | C60: 23393922.39 | D60: 7689608.907 | E60: =$B$3*'Population Estimates'!$E$4*$B$5^(A60-$A$24)*$B$4 -> 30348134.3 | F60: 0 | G60: =G59*(1+DSWRESR!$I$3) -> 191955518.6 | H60: 286538723.1 | I60: 110460 | J60: 42721797.47 | K60: 130945384.2 | L60: =L59*(1+DSWRESR!$I$3) -> 167595250 | M60: 131055844.2 | N60: 341372891.7 | O60: -54834168.62 | P60: -3158246638 | Q60: 28843034.32 | R60: -691239683.9 | S60: 28843034.32 | T60: -691239683.9 | U60: 28843034.32 | V60: -691239683.9
A61: 2052 | B61: 34248659.81 | C61: 24168123.57 | D61: 7944089.718 | E61: =$B$3*'Population Estimates'!$E$4*$B$5^(A61-$A$24)*$B$4 -> 31352478.98 | F61: 0 | G61: =G60*(1+DSWRESR!$I$3) -> 199633739.4 | H61: 297347091.4 | I61: 0 | J61: 44135637.6 | K61: 130945384.2 | L61: =L60*(1+DSWRESR!$I$3) -> 174299060 | M61: 131055844.2 | N61: 349490541.9 | O61: -52143450.44 | P61: -3336719954 | Q61: 34302975.57 | R61: -684586295.7 | S61: 34302975.57 | T61: -684586295.7 | U61: 34302975.57 | V61: -684586295.7
A62: 2053 | B62: 35382088.94 | C62: 24967946.26 | D62: 8206992.346 | E62: =$B$3*'Population Estimates'!$E$4*$B$5^(A62-$A$24)*$B$4 -> 32390061.56 | F62: 0 | G62: =G61*(1+DSWRESR!$I$3) -> 207619088.9 | H62: 308566178 | I62: 0 | J62: 45596267.52 | K62: 130945384.2 | L62: =L61*(1+DSWRESR!$I$3) -> 181271022.4 | M62: 130945384.2 | N62: 357812674.2 | O62: -49246496.16 | P62: -3519435248 | Q62: 40060797.92 | R62: -671908949.6 | S62: 40060797.92 | T62: -671908949.6 | U62: 40060797.92 | V62: -671908949.6
A63: 2054 | B63: 36553027.9 | C63: 25794238.38 | D63: 8478595.504 | E63: =$B$3*'Population Estimates'!$E$4*$B$5^(A63-$A$24)*$B$4 -> 33461982.02 | F63: 0 | G63: =G62*(1+DSWRESR!$I$3) -> 215923852.5 | H63: 320211696.3 | I63: 0 | J63: 47105235.7 | K63: 130945384.2 | L63: =L62*(1+DSWRESR!$I$3) -> 188521863.3 | M63: 130945384.2 | N63: 366572483.3 | O63: -46360786.98 | P63: -3706573445 | Q63: 45902053.06 | R63: -652883254.5 | S63: 45902053.06 | T63: -652883254.5 | U63: 45902053.06 | V63: -652883254.5
A64: 2055 | B64: 37762718.06 | C64: 26647875.9 | D64: 8759187.129 | E64: =$B$3*'Population Estimates'!$E$4*$B$5^(A64-$A$24)*$B$4 -> 34569376.75 | F64: 0 | G64: =G63*(1+DSWRESR!$I$3) -> 224560806.6 | H64: 332299964.4 | I64: 0 | J64: 48664141.84 | K64: 130945384.2 | L64: =L63*(1+DSWRESR!$I$3) -> 196062737.9 | M64: 130945384.2 | N64: 375672263.9 | O64: -43372299.54 | P64: -3898208682 | Q64: 51943897.66 | R64: -627054687.1 | S64: 51943897.66 | T64: -627054687.1 | U64: 51943897.66 | V64: -627054687.1
A65: 2056 | B65: 39012441.84 | C65: 27529763.8 | D65: 9049064.686 | E65: =$B$3*'Population Estimates'!$E$4*$B$5^(A65-$A$24)*$B$4 -> 35713419.72 | F65: 0 | G65: =G64*(1+DSWRESR!$I$3) -> 233543238.8 | H65: 344847928.9 | I65: 0 | J65: 50274638.6 | K65: 130945384.2 | L65: =L64*(1+DSWRESR!$I$3) -> 203905247.4 | M65: 130945384.2 | N65: 385125270.2 | O65: -40277341.34 | P65: -4094414371 | Q65: 58193261.15 | R65: -593943613.4 | S65: 58193261.15 | T65: -593943613.4 | U65: 58193261.15 | V65: -593943613.4
A66: 2057 | B66: 40303524.12 | C66: 28440837 | D66: 9348535.484 | E66: =$B$3*'Population Estimates'!$E$4*$B$5^(A66-$A$24)*$B$4 -> 36895323.78 | F66: 0 | G66: =G65*(1+DSWRESR!$I$3) -> 242884968.4 | H66: 357873188.8 | I66: 0 | J66: 51938433.34 | K66: 130945384.2 | L66: =L65*(1+DSWRESR!$I$3) -> 212061457.3 | M66: 130945384.2 | N66: 394945274.9 | O66: -37072086.07 | P66: -4295263032 | Q66: 64657313.99 | R66: -553044043.9 | S66: 64657313.99 | T66: -553044043.9 | U66: 64657313.99 | V66: -553044043.9
A67: 2058 | B67: 41637333.63 | C67: 29382061.37 | D67: 9657917.004 | E67: =$B$3*'Population Estimates'!$E$4*$B$5^(A67-$A$24)*$B$4 -> 38116341.91 | F67: 0 | G67: =G66*(1+DSWRESR!$I$3) -> 252600367.1 | H67: 371394021 | I67: 0 | J67: 53657289.88 | K67: 130945384.2 | L67: =L66*(1+DSWRESR!$I$3) -> 220543915.6 | M67: 130945384.2 | N67: 405146589.7 | O67: -33752568.65 | P67: -4500826122 | Q67: 71343476 | R67: -503822329.7 | S67: 71343476 | T67: -503822329.7 | U67: 71343476 | V67: -503822329.7
A68: 2059 | B68: 43015284.39 | C68: 30354434.72 | D68: 9977537.231 | E68: =$B$3*'Population Estimates'!$E$4*$B$5^(A68-$A$24)*$B$4 -> 39377768.56 | F68: 0 | G68: =G67*(1+DSWRESR!$I$3) -> 262704381.8 | H68: 385429406.7 | I68: 0 | J68: 55433030.47 | K68: 130945384.2 | L68: =L67*(1+DSWRESR!$I$3) -> 229365672.2 | M68: 130945384.2 | N68: 415744086.9 | O68: -30314680.19 | P68: -4711173847 | Q68: 78259425.18 | R68: -445715797.7 | S68: 78259425.18 | T68: -445715797.7 | U68: 78259425.18 | V68: -445715797.7
A69: 2060 | B69: 44438837.21 | C69: 31358987.91 | D69: 10307735.01 | E69: =$B$3*'Population Estimates'!$E$4*$B$5^(A69-$A$24)*$B$4 -> 40680941.01 | F69: 0 | G69: =G68*(1+DSWRESR!$I$3) -> 273212557.1 | H69: 399999058.2 | I69: 0 | J69: 57267537.62 | K69: 130945384.2 | L69: =L68*(1+DSWRESR!$I$3) -> 238540299.1 | M69: 130945384.2 | N69: 426753220.9 | O69: -26754162.72 | P69: -4926374964 | Q69: 85413106.7 | R69: -378131322.9 | S69: 85413106.7 | T69: -378131322.9 | U69: 85413106.7 | V69: -378131322.9
A70: 2061 | B70: 45909501.25 | C70: 32396785.9 | D70: 10648860.39 | E70: =$B$3*'Population Estimates'!$E$4*$B$5^(A70-$A$24)*$B$4 -> 42027240.8 | F70: 0 | G70: =G69*(1+DSWRESR!$I$3) -> 284141059.4 | H70: 415123447.7 | I70: 0 | J70: 59162756.17 | K70: 130945384.2 | L70: =L69*(1+DSWRESR!$I$3) -> 248081911 | M70: 130945384.2 | N70: 438190051.5 | O70: -23066603.74 | P70: -5146496566 | Q70: 92812742.33 | R70: -300443833.5 | S70: 92812742.33 | T70: -300443833.5 | U70: 92812742.33 | V70: -300443833.5
A71: 2062 | B71: 47428835.62 | C71: 33468928.9 | D71: 11001275.01 | E71: =$B$3*'Population Estimates'!$E$4*$B$5^(A71-$A$24)*$B$4 -> 43418095.19 | F71: 0 | G71: =G70*(1+DSWRESR!$I$3) -> 295506701.8 | H71: 430823836.5 | I71: 0 | J71: 61120695.29 | K71: 130945384.2 | L71: =L70*(1+DSWRESR!$I$3) -> 258005187.5 | M71: 130945384.2 | N71: 450071267 | O71: -19247430.55 | P71: -5371603859 | Q71: 100466840.1 | R71: -211994746.8 | S71: 100466840.1 | T71: -211994746.8 | U71: 100466840.1 | V71: -211994746.8
A72: 2063 | B72: 48998451.02 | C72: 34576553.52 | D72: 11365352.48 | E72: =$B$3*'Population Estimates'!$E$4*$B$5^(A72-$A$24)*$B$4 -> 44854978.67 | F72: 0 | G72: =G71*(1+DSWRESR!$I$3) -> 307326969.8 | H72: 447122305.5 | I72: 0 | J72: 63143430.69 | K72: 130945384.2 | L72: =L71*(1+DSWRESR!$I$3) -> 268325395 | M72: 130945384.2 | N72: 462414209.9 | O72: -15291904.4 | P72: -5601759918 | Q72: 108384204.2 | R72: -112090332.5 | S72: 108384204.2 | T72: -112090332.5 | U72: 108384204.2 | V72: -112090332.5
A73: 2064 | B73: =B72*$B$5 -> 50620011.45 | C73: =C72*$B$5 -> 35720834 | D73: =D72*$B$5 -> 11741478.78 | E73: =$B$3*'Population Estimates'!$E$4*$B$5^(A73-$A$24)*$B$4 -> 46339414.55 | F73: 0 | G73: =G72*(1+DSWRESR!$I$3) -> 319620048.6 | H73: 464041787.4 | I73: 0 | J73: 65233106.72 | K73: 130945384.2 | L73: =L72*(1+DSWRESR!$I$3) -> 279058410.8 | M73: 130945384.2 | N73: 475236901.7 | O73: -11195114.35 | P73: -5837025429 | Q73: 116573945.8 | R73: 6.705522537e-07 | S73: 116573945.8 | T73: 4.023313522e-07 | U73: 116573945.8 | V73: 4.61935997e-07
F74: =SUM(F24:F73) -> 150000000 | K74: =SUM(K24:K73) -> 5237815370
R75: Estimated Factors to make Final-Year Debt (the blue cells) almost zero: | S75: 3.576877855 | T75: 0 | U75: 2.757243727

Sheet Water Demand
K1: First Scenario | Q1: First Scenario | W1: Second Scenario | AC1: Second Scenario
K2: Increased Water Prices only | Q2: Increased Water Prices and Impact Fees | W2: Increased Water Prices only | AC2: Increased Water Prices and Impact Fees
B3: Year | C3: Current Supply | D3: Supply with LPP | E3: Base Per Capita Use (GPCD) | F3: Assumed Conservation from 2005 | G3: Per Capita Use with Conservation (GPCD) | H3: 2005 Projected Water Demand w/ cons. (ac-ft/yr) | I3: 2012 Projected Water Demand w/ cons. (ac-ft/yr) | J3: 2012 Projected Water Demand w/o cons. (ac-ft/yr) | K3: Demand w/ cons. (ac-ft/yr) | L3: GPCD w/ cons. | M3: Demand w/o cons. (ac-ft/yr) | N3: GPCD w/o cons. | O3: Demand (ac-ft/yr) | Q3: Demand w/ cons. (ac-ft/yr) | R3: GPCD w/ cons. | S3: Demand w/o cons. (ac-ft/yr) | T3: GPCD w/o cons. | U3: Demand (ac-ft/yr) | W3: Demand w/ cons. (ac-ft/yr) | X3: GPCD w/ cons. | Y3: Demand w/o cons. (ac-ft/yr) | Z3: GPCD w/o cons. | AA3: Demand (ac-ft/yr) | AC3: Demand w/ cons. (ac-ft/yr) | AD3: GPCD w/ cons. | AE3: Demand w/o cons. (ac-ft/yr) | AF3: GPCD w/o cons. | AG3: Demand (ac-ft/yr)
B4: 2009 | C4: =74560+7450 -> 82010 | D4: =C4 -> 82010 | E4: 294.3 | F4: 0 | G4: 294.3 | H4: =(G4*'Population Estimates'!E2*365)/325853 -> 55407.97452 | I4: =($G4*'Population Estimates'!E3*365)/325853 -> 45739.15473 | J4: =($E4*'Population Estimates'!E$3*365)/325853 -> 45739.15473 | K4: =$I4*'First Scenario'!$B$13 -> 10888.06308 | L4: =$G4*'First Scenario'!$B$13 -> 70.05719678 | M4: =$J4*'First Scenario'!$B$13 -> 10888.06308 | N4: =$E4*'First Scenario'!$B$13 -> 70.05719678 | O4: =IF(N4>G4,K4,M4) -> 10888.06308 | Q4: =$I4*'First Scenario'!$J$21 -> 17589.09659 | R4: =$G4*'First Scenario'!$J$21 -> 113.1737383 | S4: =$J4*'First Scenario'!$J$21 -> 17589.09659 | T4: =$E4*'First Scenario'!$J$21 -> 113.1737383 | U4: =IF(T4>M4,Q4,S4) -> 17589.09659 | W4: =$I4*'Second Scenario'!$B$13 -> 9993.527504 | X4: =$G4*'Second Scenario'!$B$13 -> 64.30147566 | Y4: =$J4*'Second Scenario'!$B$13 -> 9993.527504 | Z4: =$E4*'Second Scenario'!$B$13 -> 64.30147566 | AA4: =IF(Z4>S4,W4,Y4) -> 9993.527504 | AC4: =$I4*'Second Scenario'!$J$21 -> 16403.14022 | AD4: =$G4*'Second Scenario'!$J$21 -> 105.5429248 | AE4: =$J4*'Second Scenario'!$J$21 -> 16403.14022 | AF4: =$E4*'Second Scenario'!$J$21 -> 105.5429248 | AG4: =IF(AF4>Y4,AC4,AE4) -> 16403.14022
B5: 2010 | C5: =74560+7450 -> 82010 | D5: =C5 -> 82010 | E5: 294.3 | F5: 0.01 | G5: =$G$4*(100%-F5) -> 291.357 | H5: =(G5*'Population Estimates'!E2*365)/325853 -> 54853.89477 | I5: =($G5*'Population Estimates'!E3*365)/325853 -> 45281.76318 | J5: =($E5*'Population Estimates'!E3*365)/325853 -> 45739.15473 | K5: =$I5*'First Scenario'!$B$13 -> 10779.18245 | L5: =$G5*'First Scenario'!$B$13 -> 69.35662481 | M5: =$J5*'First Scenario'!$B$13 -> 10888.06308 | N5: =$E5*'First Scenario'!$B$13 -> 70.05719678 | O5: =IF(N5>G5,K5,M5) -> 10888.06308 | Q5: =$I5*'First Scenario'!$J$21 -> 17413.20562 | R5: =$G5*'First Scenario'!$J$21 -> 112.0420009 | S5: =$J5*'First Scenario'!$J$21 -> 17589.09659 | T5: =$E5*'First Scenario'!$J$21 -> 113.1737383 | U5: 17589.09659 | W5: =$I5*'Second Scenario'!$B$13 -> 9893.592229 | X5: =$G5*'Second Scenario'!$B$13 -> 63.6584609 | Y5: =$J5*'Second Scenario'!$B$13 -> 9993.527504 | Z5: =$E5*'Second Scenario'!$B$13 -> 64.30147566 | AA5: 9993.527504 | AC5: =$I5*'Second Scenario'!$J$21 -> 16239.10882 | AD5: =$G5*'Second Scenario'!$J$21 -> 104.4874955 | AE5: =$J5*'Second Scenario'!$J$21 -> 16403.14022 | AF5: =$E5*'Second Scenario'!$J$21 -> 105.5429248 | AG5: 16403.14022
B6: 2020 | C6: =$C$5+3830+7300+10080+27620 -> 130840 | D6: =C4+69000 -> 151010 | E6: 294.3 | F6: 0.05 | G6: 279.585 | H6: =(G6*'Population Estimates'!F2*365)/325853 -> 87645.98884 | I6: =($G6*'Population Estimates'!F3*365)/325853 -> 61620.64451 | J6: =($E6*'Population Estimates'!F3*365)/325853 -> 64863.83633 | K6: =$I6*'First Scenario'!$B$13 -> 14668.60217 | L6: =$G6*'First Scenario'!$B$13 -> 66.55433694 | M6: =$J6*'First Scenario'!$B$13 -> 15440.63386 | N6: =$E6*'First Scenario'!$B$13 -> 70.05719678 | O6: 15440.63386 | Q6: =$I6*'First Scenario'!$J$21 -> 23696.35982 | R6: =$G6*'First Scenario'!$J$21 -> 107.5150514 | S6: =$J6*'First Scenario'!$J$21 -> 24943.53665 | T6: =$E6*'First Scenario'!$J$21 -> 113.1737383 | U6: 24943.53665 | W6: =$I6*'Second Scenario'!$B$13 -> 13463.46712 | X6: =$G6*'Second Scenario'!$B$13 -> 61.08640188 | Y6: =$J6*'Second Scenario'!$B$13 -> 14172.07065 | Z6: =$E6*'Second Scenario'!$B$13 -> 64.30147566 | AA6: 14172.07065 | AC6: =$I6*'Second Scenario'!$J$21 -> 22098.61722 | AD6: =$G6*'Second Scenario'!$J$21 -> 100.2657785 | AE6: =$J6*'Second Scenario'!$J$21 -> 23261.70234 | AF6: =$E6*'Second Scenario'!$J$21 -> 105.5429248 | AG6: 23261.70234
B7: 2030 | C7: =$C$5+3830+7300+10080+27620 -> 130840 | D7: =C5+69000 -> 151010 | E7: 294.3 | F7: 0.09 | G7: 267.813 | H7: =(G7*'Population Estimates'!G2*365)/325853 -> 124647.7018 | I7: =($G7*'Population Estimates'!G3*365)/325853 -> 84163.82256 | J7: =($E7*'Population Estimates'!G3*365)/325853 -> 92487.7171 | K7: =$I7*'First Scenario'!$B$13 -> 20034.93537 | L7: =$G7*'First Scenario'!$B$13 -> 63.75204907 | M7: =$J7*'First Scenario'!$B$13 -> 22016.41249 | N7: =$E7*'First Scenario'!$B$13 -> 70.05719678 | O7: 22016.41249 | Q7: =$I7*'First Scenario'!$J$21 -> 32365.39051 | R7: =$G7*'First Scenario'!$J$21 -> 102.9881018 | S7: =$J7*'First Scenario'!$J$21 -> 35566.3632 | T7: =$E7*'First Scenario'!$J$21 -> 113.1737383 | U7: 35566.3632 | W7: =$I7*'Second Scenario'!$B$13 -> 18388.91603 | X7: =$G7*'Second Scenario'!$B$13 -> 58.51434285 | Y7: =$J7*'Second Scenario'!$B$13 -> 20207.60003 | Z7: =$E7*'Second Scenario'!$B$13 -> 64.30147566 | AA7: 20207.60003 | AC7: =$I7*'Second Scenario'!$J$21 -> 30183.13284 | AD7: =$G7*'Second Scenario'!$J$21 -> 96.04406155 | AE7: =$J7*'Second Scenario'!$J$21 -> 33168.27784 | AF7: =$E7*'Second Scenario'!$J$21 -> 105.5429248 | AG7: 33168.27784
B8: 2040 | C8: =$C$5+3830+7300+10080+27620 -> 130840 | D8: =C6+69000 -> 199840 | E8: 294.3 | F8: 0.12 | G8: 258.984 | H8: =(G8*'Population Estimates'!H2*365)/325853 -> 162358.901 | I8: =($G8*'Population Estimates'!H3*365)/325853 -> 107841.737 | J8: =($E8*'Population Estimates'!H3*365)/325853 -> 122547.4284 | K8: =$I8*'First Scenario'!$B$13 -> 25671.38902 | L8: =$G8*'First Scenario'!$B$13 -> 61.65033317 | M8: =$J8*'First Scenario'!$B$13 -> 29172.03298 | N8: =$E8*'First Scenario'!$B$13 -> 70.05719678 | O8: 29172.03298 | Q8: =$I8*'First Scenario'!$J$21 -> 41470.78667 | R8: =$G8*'First Scenario'!$J$21 -> 99.59288968 | S8: =$J8*'First Scenario'!$J$21 -> 47125.89394 | T8: =$E8*'First Scenario'!$J$21 -> 113.1737383 | U8: 47125.89394 | W8: =$I8*'Second Scenario'!$B$13 -> 23562.29299 | X8: =$G8*'Second Scenario'!$B$13 -> 56.58529858 | Y8: =$J8*'Second Scenario'!$B$13 -> 26775.33294 | Z8: =$E8*'Second Scenario'!$B$13 -> 64.30147566 | AA8: 26775.33294 | AC8: =$I8*'Second Scenario'!$J$21 -> 38674.5917 | AD8: =$G8*'Second Scenario'!$J$21 -> 92.87777381 | AE8: =$J8*'Second Scenario'!$J$21 -> 43948.39966 | AF8: =$E8*'Second Scenario'!$J$21 -> 105.5429248 | AG8: 43948.39966
B9: 2050 | C9: =$C$5+3830+7300+10080+27620 -> 130840 | D9: =C7+69000 -> 199840 | E9: 294.3 | F9: 0.16 | G9: 247.212 | H9: =(G9*'Population Estimates'!I2*365)/325853 -> 196516.7546 | I9: =($G9*'Population Estimates'!I3*365)/325853 -> 130859.1454 | J9: =($E9*'Population Estimates'!I3*365)/325853 -> 155784.697 | K9: =$I9*'First Scenario'!$B$13 -> 31150.61129 | L9: =$G9*'First Scenario'!$B$13 -> 58.84804529 | M9: =$J9*'First Scenario'!$B$13 -> 37084.06106 | N9: =$E9*'First Scenario'!$B$13 -> 70.05719678 | O9: 37084.06106 | Q9: =$I9*'First Scenario'!$J$21 -> 50322.18374 | R9: =$G9*'First Scenario'!$J$21 -> 95.06594014 | S9: =$J9*'First Scenario'!$J$21 -> 59907.3616 | T9: =$E9*'First Scenario'!$J$21 -> 113.1737383 | U9: 59907.3616 | W9: =$I9*'Second Scenario'!$B$13 -> 28591.35629 | X9: =$G9*'Second Scenario'!$B$13 -> 54.01323955 | Y9: =$J9*'Second Scenario'!$B$13 -> 34037.32891 | Z9: =$E9*'Second Scenario'!$B$13 -> 64.30147566 | AA9: 34037.32891 | AC9: =$I9*'Second Scenario'!$J$21 -> 46929.17752 | AD9: =$G9*'Second Scenario'!$J$21 -> 88.65605682 | AE9: =$J9*'Second Scenario'!$J$21 -> 55868.06848 | AF9: =$E9*'Second Scenario'!$J$21 -> 105.5429248 | AG9: 55868.06848
B10: 2060 | C10: =$C$5+3830+7300+10080+27620 -> 130840 | D10: =C8+69000 -> 199840 | E10: 294.3 | F10: 0.18 | G10: 241.326 | H10: =(G10*'Population Estimates'!J2*365)/325853 -> 232575.8153 | I10: =($G10*'Population Estimates'!J3*365)/325853 -> 157252.4653 | J10: =($E10*'Population Estimates'!J3*365)/325853 -> 191771.2992 | K10: =$I10*'First Scenario'!$B$13 -> 37433.45874 | L10: =$G10*'First Scenario'!$B$13 -> 57.44690136 | M10: =$J10*'First Scenario'!$B$13 -> 45650.55944 | N10: =$E10*'First Scenario'!$B$13 -> 70.05719678 | O10: 45650.55944 | Q10: =$I10*'First Scenario'!$J$21 -> 60471.79529 | R10: =$G10*'First Scenario'!$J$21 -> 92.80246538 | S10: =$J10*'First Scenario'!$J$21 -> 73746.09182 | T10: =$E10*'First Scenario'!$J$21 -> 113.1737383 | U10: 73746.09182 | W10: =$I10*'Second Scenario'!$B$13 -> 34358.02097 | X10: =$G10*'Second Scenario'!$B$13 -> 52.72721004 | Y10: =$J10*'Second Scenario'!$B$13 -> 41900.02558 | Z10: =$E10*'Second Scenario'!$B$13 -> 64.30147566 | AA10: 41900.02558 | AC10: =$I10*'Second Scenario'!$J$21 -> 56394.44485 | AD10: =$G10*'Second Scenario'!$J$21 -> 86.54519832 | AE10: =$J10*'Second Scenario'!$J$21 -> 68773.71324 | AF10: =$E10*'Second Scenario'!$J$21 -> 105.5429248 | AG10: 68773.71324
H11: 2060 demand as a fraction of 2010 supply -> | I11: =I10/$C$4 -> 1.917479153 | O11: =O10/$C$4 -> 0.5566462558 | U11: =U10/$C$4 -> 0.8992329206 | AA11: =AA10/$C$4 -> 0.5109136151 | AG11: =AG10/$C$4 -> 0.8386015515
H12: 2060 demand as a fraction of 2010 demand -> | I12: =I10/$I$4 -> 3.438027359 | O12: =O10/$I$4 -> 0.9980630318 | U12: =U10/$I$4 -> 1.612318641 | AA12: =AA10/$I$4 -> 0.9160647114 | AG12: =AG10/$I$4 -> 1.503607
C13: Red = some water from outside WCWCD's non-LPP sources is actually used (total demand > 130,840 acre-feet)
C14: Blue = no water from outside of WCWCD's non-LPP sources will be needed because water's so expensive that > 130,840 acre-feet are not demanded
C15: Blue Italic = no water from outside of WCWCD's non-LPP sources will be needed because water's so expensive that > 82,010 acre-feet (2010's supply) are not demanded
C16: Blue Italic Underline = no water from outside of WCWCD's non-LPP sources will be needed because water's so expensive that > 45,739 acre-feet (2010's demand) are not demanded
C17: Source: 2011 LPP Water Needs Assessment
W25: 1992 Water Use - Wash. Cty.
W26: Culinary | X26: 18570
W27: Secondary | X27: 14710
W28: Total M&I | X28: =SUM(X26:X27) -> 33280
W30: Ag Water | X30: 87800
W31: Total | X31: =X28+X30 -> 121080

Sheet Water vs. Impact Fee Revenues
B1: Water Revenues | C1: Impact Fee Revenues | E1: =SQRT('First Scenario'!B8) -> 2.047612339 | F1: If Water Revenues rise by a factor > this, Q_2060 < Q_2010.
A2: 0 | B2: =1+(1-A2)*'First Scenario'!B10 -> 4.20085321 | C2: =1+(A2)*'First Scenario'!B15 -> 1
A3: 1 | B3: =1+(1-A3)*'First Scenario'!B10 -> 1 | C3: =1+(A3)*'First Scenario'!B15 -> 3.467384349
